COST_CENTRE,COST_CENTRE_DESCRIPTION,SERVICE,DIRECTORATE,SUBJECTIVE,SUBJECTIVE_DESCRIPTION,SUPPLIER_NAME,DESCRIPTION,VOUCHER_NUM,PAYMENT_DATE,LINE_AMOUNT,NET_PAID_AMOUNT,PAID_AMOUNT
600001,Corporate Properties,Natural Resources and Assets,Infrastructure and Planning,41304,Cleaning & Domestic Materials,The Consortium,General Cleaning Supplies,2377852 , 06/11/2018,499.75,499.75,599.70
600001,Corporate Properties,Natural Resources and Assets,Infrastructure and Planning,22501,Rent,Duchy Of Cornwall,RENT FOR CARN THOMAS OFFICES,2411569 , 11/12/2018,"1,150.00","1,150.00","1,150.00"
600001,Corporate Properties,Natural Resources and Assets,Infrastructure and Planning,41304,Cleaning & Domestic Materials,The Consortium,General Cleaning Supplies,2410501 , 18/12/2018,476.70,476.70,572.04
600001,Corporate Properties,Natural Resources and Assets,Infrastructure and Planning,73913,Other - Asbestos Work  [CHL],Allium Environmental Ltd,Asbestos Management Plans,2365669 , 23/10/2018,750.00,750.00,900.00
600001,Corporate Properties,Natural Resources and Assets,Infrastructure and Planning,41304,Cleaning & Domestic Materials,The Consortium,General Cleaning Supplies,2377850 , 08/11/2018,803.77,803.77,964.53
600001,Corporate Properties,Natural Resources and Assets,Infrastructure and Planning,22002,Electricity,British Gas Business,CARN GWAVAL PRIMARY SCHOOL 3.10.18-29.10.18,2415786 , 13/12/2018,974.52,974.52,"1,169.42"
600001,Corporate Properties,Natural Resources and Assets,Infrastructure and Planning,49002,Miscellaneous Expenditure,St Ives Steeplejacks,MATERIALS,2352892 , 09/10/2018,450.00,950.00,"1,040.00"
600001,Corporate Properties,Natural Resources and Assets,Infrastructure and Planning,49002,Miscellaneous Expenditure,St Ives Steeplejacks,LABOUR,2352892 , 09/10/2018,500.00,950.00,"1,040.00"
600001,Corporate Properties,Natural Resources and Assets,Infrastructure and Planning,49002,Miscellaneous Expenditure,St Ives Steeplejacks,Lightning Conductor Testing,2352892 , 09/10/2018,-950.00,950.00,"1,040.00"
600001,Corporate Properties,Natural Resources and Assets,Infrastructure and Planning,49002,Miscellaneous Expenditure,St Ives Steeplejacks,Lightning Conductor Testing,2352892 , 09/10/2018,950.00,950.00,"1,040.00"
600001,Corporate Properties,Natural Resources and Assets,Infrastructure and Planning,22002,Electricity,Edf Energy Plc,EDF Energy supply lighting October,2402656 , 29/11/2018,1.66,"1,120.33","1,223.80"
600001,Corporate Properties,Natural Resources and Assets,Infrastructure and Planning,22002,Electricity,Edf Energy Plc,EDF Energy supply lighting October,2402656 , 29/11/2018,517.37,"1,120.33","1,223.80"
600001,Corporate Properties,Natural Resources and Assets,Infrastructure and Planning,22002,Electricity,Edf Energy Plc,EDF Energy supply lighting October,2402656 , 29/11/2018,601.30,"1,120.33","1,223.80"
600001,Corporate Properties,Natural Resources and Assets,Infrastructure and Planning,22501,Rent,Duchy Of Cornwall,RENT FOR CARN THOMAS OFFICES,2411572 , 11/12/2018,"1,150.00","1,150.00","1,150.00"
600001,Corporate Properties,Natural Resources and Assets,Infrastructure and Planning,49002,Miscellaneous Expenditure,Davey & Gilbert Ltd,"Annual plant servicing
Six monthly legionella",2377751 , 06/11/2018,521.39,521.39,625.67
600002,Public Conveniences,Natural Resources and Assets,Infrastructure and Planning,27001,Contract Cleaning,REDACTED,St Martins Public Convenience Cleaning 1/11/17 - 30/10/18,2414998 , 13/12/2018,"5,037.50","5,037.50","5,037.50"
600002,Public Conveniences,Natural Resources and Assets,Infrastructure and Planning,27001,Contract Cleaning,REDACTED,St Agnes Cleaning Sept 2018,2362181 , 16/10/2018,796.25,796.25,796.25
600002,Public Conveniences,Natural Resources and Assets,Infrastructure and Planning,27001,Contract Cleaning,REDACTED,Cleaning services St Agnes Oct,2386721 , 08/11/2018,796.25,796.25,796.25
600003,Commercial Property,Natural Resources and Assets,Infrastructure and Planning,45105,Telephone Usage,The Phone Co-Op Ltd,004069722 call internet standing orders,2261197 , 29/11/2018,0.02,"1,112.51","1,335.01"
600003,Commercial Property,Natural Resources and Assets,Infrastructure and Planning,45208,IT Software Support,Digital Navigators,PEC IT Support Services,2358964 , 09/10/2018,560.17,560.17,560.17
600003,Commercial Property,Natural Resources and Assets,Infrastructure and Planning,22002,Electricity,Edf Energy Plc,1 Apr 18 - 30 Apr 18,2402017 , 29/11/2018,465.97,465.97,559.16
600003,Commercial Property,Natural Resources and Assets,Infrastructure and Planning,22002,Electricity,Edf Energy Plc,1 Mar 18 - 31 Mar 18,2402016 , 29/11/2018,530.39,530.39,636.47
600003,Commercial Property,Natural Resources and Assets,Infrastructure and Planning,22002,Electricity,Edf Energy Plc,1 Oct - 31 Oct 18,2401920 , 29/11/2018,563.47,563.47,676.16
600010,Operational R & M Services,Operational Services,Infrastructure and Planning,45105,Telephone Usage,The Phone Co-Op Ltd,call internet standing orders,2261197 , 29/11/2018,1.20,"1,112.51","1,335.01"
600010,Operational R & M Services,Operational Services,Infrastructure and Planning,45105,Telephone Usage,The Phone Co-Op Ltd,call internet standing orders,2261197 , 29/11/2018,4.90,"1,112.51","1,335.01"
600010,Operational R & M Services,Operational Services,Infrastructure and Planning,45105,Telephone Usage,The Phone Co-Op Ltd,call internet standing orders,2261197 , 29/11/2018,28.00,"1,112.51","1,335.01"
600010,Operational R & M Services,Operational Services,Infrastructure and Planning,45215,Internet/Broadband charges,The Phone Co-Op Ltd,call internet standing orders,2261197 , 29/11/2018,53.00,"1,112.51","1,335.01"
600010,Operational R & M Services,Operational Services,Infrastructure and Planning,49002,Miscellaneous Expenditure,Vincent Tractors Ltd,LM85 2700kg trailer,2336388 , 02/10/2018,"1,925.00","1,925.00","2,310.00"
600010,Operational R & M Services,Operational Services,Infrastructure and Planning,49002,Miscellaneous Expenditure,Kellands (Plant Sales) Ltd,Roof screen and seal for Doosan excavator,2415610 , 13/12/2018,662.10,662.10,794.52
600010,Operational R & M Services,Operational Services,Infrastructure and Planning,49002,Miscellaneous Expenditure,Blue Machinery (Spares) Ltd,500 hour service kit for Doppstadt,2402661 , 04/12/2018,584.94,584.94,701.93
600010,Operational R & M Services,Operational Services,Infrastructure and Planning,46119,Haulage Costs,Island Carriers,Island Carriers October Invoice,2391340 , 15/11/2018,"2,804.89","2,804.89","3,365.91"
600010,Operational R & M Services,Operational Services,Infrastructure and Planning,49002,Miscellaneous Expenditure,Flowplant Group Ltd,Drain jetter parts quote no. QU/15810,2352863 , 11/10/2018,721.06,721.06,865.27
600010,Operational R & M Services,Operational Services,Infrastructure and Planning,31204,Derv Purchases,Sibleys Fuel & Marine Services,Fuel for Repair & Maintenance for 12 months - April 18 - March 19 inc,2385782 , 27/11/2018,"3,334.90","6,756.85","7,457.15"
600010,Operational R & M Services,Operational Services,Infrastructure and Planning,31204,Derv Purchases,Sibleys Fuel & Marine Services,Fuel for Repair & Maintenance for 12 months - April 18 - March 19 inc,2385782 , 27/11/2018,702.57,"6,756.85","7,457.15"
600010,Operational R & M Services,Operational Services,Infrastructure and Planning,31204,Derv Purchases,Sibleys Fuel & Marine Services,Fuel for Repair & Maintenance for 12 months - April 18 - March 19 inc,2385782 , 27/11/2018,10.76,"6,756.85","7,457.15"
600010,Operational R & M Services,Operational Services,Infrastructure and Planning,49002,Miscellaneous Expenditure,Tecalemit Garage Equipment Company Ltd,Azure 3.2t vehicle lift,2356527 , 04/10/2018,"2,885.00","2,885.00","3,462.00"
600010,Operational R & M Services,Operational Services,Infrastructure and Planning,31204,Derv Purchases,Sibleys Fuel & Marine Services,Fuel for Repair & Maintenance for 12 months - April 18 - March 19 inc,2385748 , 27/11/2018,373.78,"2,168.09","2,479.58"
600010,Operational R & M Services,Operational Services,Infrastructure and Planning,31204,Derv Purchases,Sibleys Fuel & Marine Services,Fuel for Repair & Maintenance for 12 months - April 18 - March 19 inc,2382462 , 22/11/2018,61.72,"3,402.50","3,811.60"
600010,Operational R & M Services,Operational Services,Infrastructure and Planning,31204,Derv Purchases,Sibleys Fuel & Marine Services,Fuel for Repair & Maintenance for 12 months - April 18 - March 19 inc,2382462 , 22/11/2018,6.56,"3,402.50","3,811.60"
600010,Operational R & M Services,Operational Services,Infrastructure and Planning,31204,Derv Purchases,Sibleys Fuel & Marine Services,Fuel for Repair & Maintenance for 12 months - April 18 - March 19 inc,2382462 , 22/11/2018,32.62,"3,402.50","3,811.60"
600010,Operational R & M Services,Operational Services,Infrastructure and Planning,31204,Derv Purchases,Sibleys Fuel & Marine Services,Fuel for Repair & Maintenance for 12 months - April 18 - March 19 inc,2382462 , 22/11/2018,10.76,"3,402.50","3,811.60"
600010,Operational R & M Services,Operational Services,Infrastructure and Planning,31204,Derv Purchases,Sibleys Fuel & Marine Services,Fuel for Repair & Maintenance for 12 months - April 18 - March 19 inc,2382462 , 22/11/2018,114.13,"3,402.50","3,811.60"
600010,Operational R & M Services,Operational Services,Infrastructure and Planning,31204,Derv Purchases,Sibleys Fuel & Marine Services,Fuel for Repair & Maintenance for 12 months - April 18 - March 19 inc,2382462 , 22/11/2018,67.18,"3,402.50","3,811.60"
600010,Operational R & M Services,Operational Services,Infrastructure and Planning,31204,Derv Purchases,Sibleys Fuel & Marine Services,Fuel for Repair & Maintenance for 12 months - April 18 - March 19 inc,2382462 , 22/11/2018,19.16,"3,402.50","3,811.60"
600010,Operational R & M Services,Operational Services,Infrastructure and Planning,31204,Derv Purchases,Sibleys Fuel & Marine Services,Fuel for Repair & Maintenance for 12 months - April 18 - March 19 inc,2382462 , 22/11/2018,39.45,"3,402.50","3,811.60"
600010,Operational R & M Services,Operational Services,Infrastructure and Planning,31204,Derv Purchases,Sibleys Fuel & Marine Services,Fuel for Repair & Maintenance for 12 months - April 18 - March 19 inc,2382462 , 22/11/2018,24.68,"3,402.50","3,811.60"
600010,Operational R & M Services,Operational Services,Infrastructure and Planning,31204,Derv Purchases,Sibleys Fuel & Marine Services,Fuel for Repair & Maintenance for 12 months - April 18 - March 19 inc,2382462 , 22/11/2018,49.37,"3,402.50","3,811.60"
600012,Highways,Operational Services,Infrastructure and Planning,45105,Telephone Usage,The Phone Co-Op Ltd,call internet standing orders,2261197 , 29/11/2018,-0.36,"1,112.51","1,335.01"
600012,Highways,Operational Services,Infrastructure and Planning,45105,Telephone Usage,The Phone Co-Op Ltd,call internet standing orders,2261197 , 29/11/2018,-0.05,"1,112.51","1,335.01"
600012,Highways,Operational Services,Infrastructure and Planning,45105,Telephone Usage,The Phone Co-Op Ltd,call internet standing orders,2261197 , 29/11/2018,-0.81,"1,112.51","1,335.01"
600012,Highways,Operational Services,Infrastructure and Planning,45105,Telephone Usage,The Phone Co-Op Ltd,call internet standing orders,2261197 , 29/11/2018,-0.10,"1,112.51","1,335.01"
600012,Highways,Operational Services,Infrastructure and Planning,47016,Accomodation Grants,REDACTED,2018-19 Post 16 Grant A2,2399982 , 22/11/2018,"1,705.33","1,705.33","1,705.33"
600020,Building Control,Planning and Development,Infrastructure and Planning,49002,Miscellaneous Expenditure,Cornwall Council,Provision of buldling control services 2nd quarter 2018-19,2402660 , 06/12/2018,"3,550.00","3,550.00","4,260.00"
600021,Development Management,Planning and Development,Infrastructure and Planning,45217,Annual Licence Software Fees,Ordnance Survey,Ordnance Survey MasterMap Imagery license renewal. 1 year from 22.09.2018 to 21.09.2019,2375519 , 25/10/2018,741.75,741.75,890.10
600021,Development Management,Planning and Development,Infrastructure and Planning,45214,Admin Computer Stationery/Cons,Idox Software Ltd,Uniform Hosting frim 01/10/2018 to 31/03/2019,2410506 , 06/12/2018,"3,082.53","3,082.53","3,699.04"
600022,Strategic Planning,Planning and Development,Infrastructure and Planning,43532,Professional Fees - Other,Understanding Data Ltd,Tourism Accommodation topic Paper,2420812 , 27/12/2018,"1,800.00","1,800.00","1,800.00"
600030,Fire & Rescue,Fire and Rescue,Infrastructure and Planning,31102,Vehicle Repair and Maintenance,David Parr Engineering,01.04.18 - 31.03.19 BREAKDOWN AND REPAIR OF LAFS ROMEO 1 AND MAIN PUMP @38 PER HOUR PLUS VAT,2362122 , 11/10/2018,589.00,589.00,706.80
600030,Fire & Rescue,Fire and Rescue,Infrastructure and Planning,31102,Vehicle Repair and Maintenance,David Parr Engineering,01.04.18 - 31.03.19 BREAKDOWN AND REPAIR OF LAFS ROMEO 1 AND MAIN PUMP @38 PER HOUR PLUS VAT,2401805 , 27/11/2018,532.00,532.00,638.40
600030,Fire & Rescue,Fire and Rescue,Infrastructure and Planning,46118,Freight Costs,Richard Hand Haulage,"01.04.18 - 31.03.19
RICHARD HAND HAULAGE (FIRE SERVICE)",2415723 , 13/12/2018,664.24,664.24,797.09
600030,Fire & Rescue,Fire and Rescue,Infrastructure and Planning,45103,Line Rental & Installation,The Phone Co-Op Ltd,"LINE RENTALS & CALLS (A), LINE RENTALS & CALLS (F), BROADBAND (A), BROADBAND (F)",2368296 , 06/11/2018,147.66,489.41,582.47
600030,Fire & Rescue,Fire and Rescue,Infrastructure and Planning,45215,Internet/Broadband charges,The Phone Co-Op Ltd,"LINE RENTALS & CALLS (A), LINE RENTALS & CALLS (F), BROADBAND (A), BROADBAND (F)",2368296 , 06/11/2018,46.06,489.41,582.47
600030,Fire & Rescue,Fire and Rescue,Infrastructure and Planning,46103,Hotel Expenses,Evergreen Cottage Guest House,Evergreen BnB 7 nights x 4 ppl @45.,2420784 , 18/12/2018,"1,260.00","1,260.00","1,260.00"
600030,Fire & Rescue,Fire and Rescue,Infrastructure and Planning,31204,Derv Purchases,Sibleys Fuel & Marine Services,"Local Authority Fire Service Fuel
1st April 2018 - 31st March 2019",2385748 , 27/11/2018,68.84,"2,168.09","2,479.58"
600030,Fire & Rescue,Fire and Rescue,Infrastructure and Planning,45103,Line Rental & Installation,The Phone Co-Op Ltd,LINE RENTALS & CALLS & BROADBAND,2405425 , 29/11/2018,147.66,489.41,582.47
600030,Fire & Rescue,Fire and Rescue,Infrastructure and Planning,45215,Internet/Broadband charges,The Phone Co-Op Ltd,LINE RENTALS & CALLS & BROADBAND,2405425 , 29/11/2018,46.06,489.41,582.47
600030,Fire & Rescue,Fire and Rescue,Infrastructure and Planning,31204,Derv Purchases,Sibleys Fuel & Marine Services,"Local Authority Fire Service Fuel
1st April 2018 - 31st March 2019",2410806 , 06/12/2018,93.06,"1,822.36","1,941.32"
600030,Fire & Rescue,Fire and Rescue,Infrastructure and Planning,31204,Derv Purchases,Sibleys Fuel & Marine Services,"Local Authority Fire Service Fuel
1st April 2018 - 31st March 2019",2410806 , 06/12/2018,21.67,"1,822.36","1,941.32"
600031,Emergency Planning,Fire and Rescue,Infrastructure and Planning,21101,R&M - Buildings - Planned,Raymond Supplies Ltd,Raymond Supplies 15 Sandbags,2407811 , 20/12/2018,"1,520.00","1,520.00","1,520.00"
600033,2015 Fire Pension Scheme,Fire and Rescue,Infrastructure and Planning,11412,Pension Payments - Firefighters,Home Office,Refund re Scilly Fire Service Pension,2363093 , 18/10/2018,"8,344.00","8,344.00","8,344.00"
600040,Waste Collection and Operations,Waste and Recycling,Infrastructure and Planning,49002,Miscellaneous Expenditure,Essential Safety Wear Ltd,PPE order for Waste team and Maintenance team for winter 2018,2405482 , 27/12/2018,"2,200.56","2,200.56","2,640.67"
600040,Waste Collection and Operations,Waste and Recycling,Infrastructure and Planning,49002,Miscellaneous Expenditure,Chiverton Builders,"Chiverton Builders supplied us with 6 x 25 litres of Odourway for waste in shed, 2 x 25 litres of GTX for the sewerage dept",2365532 , 18/10/2018,"1,236.00","1,236.00","1,483.20"
600040,Waste Collection and Operations,Waste and Recycling,Infrastructure and Planning,49002,Miscellaneous Expenditure,Allins Ltd,Supply of 8 compactor skips doors and fittings,2407838 , 04/12/2018,"1,596.00","1,596.00","1,915.20"
600040,Waste Collection and Operations,Waste and Recycling,Infrastructure and Planning,49002,Miscellaneous Expenditure,Bryher Forge,Bryher waste management contract,2376161 , 30/10/2018,875.00,875.00,875.00
600040,Waste Collection and Operations,Waste and Recycling,Infrastructure and Planning,49002,Miscellaneous Expenditure,Essential Safety Wear Ltd,Purchase of 5 X Electric fly Zappers from Essential safety wear,2337188 , 02/10/2018,"1,485.00","1,485.00","1,782.00"
600040,Waste Collection and Operations,Waste and Recycling,Infrastructure and Planning,49002,Miscellaneous Expenditure,Kellands (Plant Sales) Ltd,Doosan grab parts,2343891 , 02/10/2018,"2,619.08","2,619.08","3,142.90"
600040,Waste Collection and Operations,Waste and Recycling,Infrastructure and Planning,49002,Miscellaneous Expenditure,Wessex GS Ltd,"Purchase of 2 injectors for the new dustcart from Wessex DAF, Formal Business Park,Camborne.",2415614 , 13/12/2018,"1,108.04","1,108.04","1,329.65"
600040,Waste Collection and Operations,Waste and Recycling,Infrastructure and Planning,49002,Miscellaneous Expenditure,Bryher Forge,Bryher waste management contract,2401695 , 27/11/2018,875.00,875.00,875.00
600040,Waste Collection and Operations,Waste and Recycling,Infrastructure and Planning,49002,Miscellaneous Expenditure,Newlyn Tyre Service,Purchase of tyres for Dustcarts 4 tyres for Izuzu and 3 for the DAF from Newlyn tyres,2410084 , 06/12/2018,821.00,821.00,985.20
600040,Waste Collection and Operations,Waste and Recycling,Infrastructure and Planning,49002,Miscellaneous Expenditure,Sibleys Fuel & Marine Services,Fuel for waste collection vehicles part 2,2385782 , 27/11/2018,740.57,"6,756.85","7,457.15"
600040,Waste Collection and Operations,Waste and Recycling,Infrastructure and Planning,49002,Miscellaneous Expenditure,Sibleys Fuel & Marine Services,Fuel for waste collection vehicles part 2,2385782 , 27/11/2018,225.13,"6,756.85","7,457.15"
600040,Waste Collection and Operations,Waste and Recycling,Infrastructure and Planning,49002,Miscellaneous Expenditure,Sibleys Fuel & Marine Services,Fuel for waste site vehicles,2385782 , 27/11/2018,44.95,"6,756.85","7,457.15"
600040,Waste Collection and Operations,Waste and Recycling,Infrastructure and Planning,57072,Recycling Collection - Private Contractors,Viridor Waste Management Ltd,Viridor waste management ltd. chainlift October,2389641 , 29/11/2018,797.25,797.25,956.70
600040,Waste Collection and Operations,Waste and Recycling,Infrastructure and Planning,49002,Miscellaneous Expenditure,Sibleys Fuel & Marine Services,Fuel for waste site vehicles,2385748 , 27/11/2018,72.72,"2,168.09","2,479.58"
600040,Waste Collection and Operations,Waste and Recycling,Infrastructure and Planning,49002,Miscellaneous Expenditure,Sibleys Fuel & Marine Services,Fuel for waste collection vehicles part 2,2385748 , 27/11/2018,307.77,"2,168.09","2,479.58"
600040,Waste Collection and Operations,Waste and Recycling,Infrastructure and Planning,49002,Miscellaneous Expenditure,Sibleys Fuel & Marine Services,Fuel for waste site vehicles,2385748 , 27/11/2018,72.72,"2,168.09","2,479.58"
600040,Waste Collection and Operations,Waste and Recycling,Infrastructure and Planning,49002,Miscellaneous Expenditure,Sibleys Fuel & Marine Services,Fuel for waste site vehicles,2385748 , 27/11/2018,-88.74,"2,168.09","2,479.58"
600040,Waste Collection and Operations,Waste and Recycling,Infrastructure and Planning,49002,Miscellaneous Expenditure,Sibleys Fuel & Marine Services,Fuel for waste site vehicles,2385748 , 27/11/2018,88.74,"2,168.09","2,479.58"
600040,Waste Collection and Operations,Waste and Recycling,Infrastructure and Planning,49002,Miscellaneous Expenditure,Sibleys Fuel & Marine Services,Fuel for waste site vehicles,2385748 , 27/11/2018,-72.72,"2,168.09","2,479.58"
600040,Waste Collection and Operations,Waste and Recycling,Infrastructure and Planning,49002,Miscellaneous Expenditure,William Pollard & Co Ltd,Purchase of 5000 weighbridge tickets from Pollards,2363123 , 16/10/2018,646.00,646.00,775.20
600040,Waste Collection and Operations,Waste and Recycling,Infrastructure and Planning,49002,Miscellaneous Expenditure,Sibleys Fuel & Marine Services,Fuel for waste collection vehicles part 2,2382462 , 22/11/2018,87.71,"3,402.50","3,811.60"
600040,Waste Collection and Operations,Waste and Recycling,Infrastructure and Planning,49002,Miscellaneous Expenditure,Sibleys Fuel & Marine Services,Fuel for waste collection vehicles part 2,2382462 , 22/11/2018,78.99,"3,402.50","3,811.60"
600040,Waste Collection and Operations,Waste and Recycling,Infrastructure and Planning,49002,Miscellaneous Expenditure,Sibleys Fuel & Marine Services,Fuel for waste collection vehicles part 2,2382462 , 22/11/2018,79.37,"3,402.50","3,811.60"
600040,Waste Collection and Operations,Waste and Recycling,Infrastructure and Planning,49002,Miscellaneous Expenditure,Sibleys Fuel & Marine Services,Fuel for waste collection vehicles part 2,2382462 , 22/11/2018,94.58,"3,402.50","3,811.60"
600040,Waste Collection and Operations,Waste and Recycling,Infrastructure and Planning,49002,Miscellaneous Expenditure,Sibleys Fuel & Marine Services,Fuel for waste collection vehicles part 2,2382462 , 22/11/2018,49.02,"3,402.50","3,811.60"
600040,Waste Collection and Operations,Waste and Recycling,Infrastructure and Planning,49002,Miscellaneous Expenditure,Sibleys Fuel & Marine Services,Fuel for waste collection vehicles part 2,2382462 , 22/11/2018,82.44,"3,402.50","3,811.60"
600040,Waste Collection and Operations,Waste and Recycling,Infrastructure and Planning,49002,Miscellaneous Expenditure,Sibleys Fuel & Marine Services,Fuel for waste collection vehicles part 2,2382462 , 22/11/2018,66.11,"3,402.50","3,811.60"
600040,Waste Collection and Operations,Waste and Recycling,Infrastructure and Planning,49002,Miscellaneous Expenditure,REDACTED,Disposal of rubbish from St Agnes in june,2366720 , 23/10/2018,750.00,750.00,900.00
600040,Waste Collection and Operations,Waste and Recycling,Infrastructure and Planning,49002,Miscellaneous Expenditure,Galebreaker Agri Ltd,VAT - proforma invoice,2392081 , 22/11/2018,534.80,"3,208.80","3,208.80"
600040,Waste Collection and Operations,Waste and Recycling,Infrastructure and Planning,49002,Miscellaneous Expenditure,Galebreaker Agri Ltd,for 2 x Galebreaker Trackscreens to suit opening 8.5m x 5.0m M75 standard green mesh TS9050. Total 2724 including delivery to Penzance TR18-4AH,2392081 , 22/11/2018,"2,674.00","3,208.80","3,208.80"
600042,Waste Recycling (Code Closed),Waste and Recycling,Infrastructure and Planning,46119,Haulage Costs,Suez Recycling and Recovery UK Ltd (was Sita UK Ltd),Seuz recycling and receiving Oct 18,2416937 , 18/12/2018,"16,249.40","16,249.40","19,499.28"
600042,Waste Recycling (Code Closed),Waste and Recycling,Infrastructure and Planning,46119,Haulage Costs,Island Carriers,haulage - waste and recycling. October 2018,2368230 , 23/10/2018,"2,863.61","2,863.61","3,436.31"
600042,Waste Recycling (Code Closed),Waste and Recycling,Infrastructure and Planning,31102,Vehicle Repair and Maintenance,Doerwheal,Waste/Recycling Oct 2018,2405285 , 06/12/2018,585.00,585.00,585.00
600042,Waste Recycling (Code Closed),Waste and Recycling,Infrastructure and Planning,46119,Haulage Costs,REDACTED,waste disposal St Agnes,2389024 , 13/11/2018,750.00,750.00,900.00
600042,Waste Recycling (Code Closed),Waste and Recycling,Infrastructure and Planning,46118,Freight Costs,Isles Of Scilly Steamship Co,Isles of Scilly Travel Freight - Waste Site October 2018,2402653 , 04/12/2018,"6,463.40","6,463.40","7,756.08"
600042,Waste Recycling (Code Closed),Waste and Recycling,Infrastructure and Planning,57069,Waste Disposal Contracts - Private Contractors,Wheal Alfred Metals Recycling Ltd,IOS Light Iron,2407043 , 13/12/2018,800.00,800.00,960.00
600042,Waste Recycling (Code Closed),Waste and Recycling,Infrastructure and Planning,57069,Waste Disposal Contracts - Private Contractors,Wheal Alfred Metals Recycling Ltd,IOS Light Iron,2407043 , 13/12/2018,-800.00,800.00,960.00
600042,Waste Recycling (Code Closed),Waste and Recycling,Infrastructure and Planning,57069,Waste Disposal Contracts - Private Contractors,Wheal Alfred Metals Recycling Ltd,IOS Light Iron,2407043 , 13/12/2018,800.00,800.00,960.00
600042,Waste Recycling (Code Closed),Waste and Recycling,Infrastructure and Planning,57069,Waste Disposal Contracts - Private Contractors,Wheal Alfred Metals Recycling Ltd,IOS Light Iron,2362192 , 16/10/2018,800.00,800.00,960.00
600042,Waste Recycling (Code Closed),Waste and Recycling,Infrastructure and Planning,46119,Haulage Costs,Viridor Waste Management Ltd,Isles of Scilly Packer Skip movement,2376234 , 30/10/2018,"9,880.68","9,880.68","11,856.80"
600042,Waste Recycling (Code Closed),Waste and Recycling,Infrastructure and Planning,31301,Vehicle acquisition <10k,T Harvey & Sons Ltd,Deposit for a waste vehicle,2382514 , 06/11/2018,500.00,500.00,500.00
600042,Waste Recycling (Code Closed),Waste and Recycling,Infrastructure and Planning,89004,Acquisition Costs - Vehicles & Plant,T Harvey & Sons Ltd,Nissan Cabstar Tipper With Cage Frame,2402518 , 27/11/2018,"14,420.00","14,420.00","17,304.00"
600042,Waste Recycling (Code Closed),Waste and Recycling,Infrastructure and Planning,27005,Recycling,Polystar Plastics Ltd,Household recycling sacks 150rolls,2405463 , 04/12/2018,"2,762.50","2,762.50","3,315.00"
600042,Waste Recycling (Code Closed),Waste and Recycling,Infrastructure and Planning,46118,Freight Costs,Isles Of Scilly Steamship Co,Isles of Scilly Travel Freight - Waste Site: November,2415844 , 18/12/2018,"12,574.58","12,574.58","15,089.50"
600042,Waste Recycling (Code Closed),Waste and Recycling,Infrastructure and Planning,31102,Vehicle Repair and Maintenance,Doerwheal,Services waste and recycling Sept 2018,2361559 , 18/10/2018,"2,100.00","2,100.00","2,100.00"
600042,Waste Recycling (Code Closed),Waste and Recycling,Infrastructure and Planning,46118,Freight Costs,Isles Of Scilly Steamship Co,Freight: Waste Site - September 2018,2368290 , 23/10/2018,"14,447.60","14,447.60","17,337.12"
600042,Waste Recycling (Code Closed),Waste and Recycling,Infrastructure and Planning,22501,Rent,Duchy Of Cornwall,RENT FOR MOORWELL DEPOT 'A',2411568 , 11/12/2018,"1,687.50","1,687.50","1,687.50"
600042,Waste Recycling (Code Closed),Waste and Recycling,Infrastructure and Planning,41301,Books and Publications,Karen Jackson Design,Recycling Leaflets,2408489 , 04/12/2018,810.00,810.00,972.00
600042,Waste Recycling (Code Closed),Waste and Recycling,Infrastructure and Planning,41301,Books and Publications,Karen Jackson Design,Recycling Leaflets,2408489 , 04/12/2018,-972.00,810.00,972.00
600042,Waste Recycling (Code Closed),Waste and Recycling,Infrastructure and Planning,41301,Books and Publications,Karen Jackson Design,Recycling Leaflets,2408489 , 04/12/2018,972.00,810.00,972.00
600042,Waste Recycling (Code Closed),Waste and Recycling,Infrastructure and Planning,43506,Professional Fees - Legal,Mills & Reeve,Provision of legal services relating to dispute,2362933 , 06/11/2018,"2,247.00","2,247.00","2,696.40"
600042,Waste Recycling (Code Closed),Waste and Recycling,Infrastructure and Planning,46119,Haulage Costs,Suez Recycling and Recovery UK Ltd (was Sita UK Ltd),Suez Waste and Recycling For September 2018,2363041 , 30/10/2018,"50,070.40","50,070.40","60,084.48"
600042,Waste Recycling (Code Closed),Waste and Recycling,Infrastructure and Planning,57069,Waste Disposal Contracts - Private Contractors,Tresco Estate,Tresco Waste Contract,2363227 , 16/10/2018,"9,583.33","9,583.33","11,500.00"
600042,Waste Recycling (Code Closed),Waste and Recycling,Infrastructure and Planning,22501,Rent,Duchy Of Cornwall,RENT FOR MOORWELL DEPOT 'A',2411571 , 11/12/2018,"1,687.50","1,687.50","1,687.50"
600042,Waste Recycling (Code Closed),Waste and Recycling,Infrastructure and Planning,46118,Freight Costs,Isles Of Scilly Steamship Co,Waste Site CIOS Freight for August 2018,2344155 , 02/10/2018,"13,196.14","13,196.14","15,835.37"
600042,Waste Recycling (Code Closed),Waste and Recycling,Infrastructure and Planning,57069,Waste Disposal Contracts - Private Contractors,REDACTED,Waste Disposal - St Agnes: November,2410493 , 06/12/2018,750.00,750.00,900.00
600042,Waste Recycling (Code Closed),Waste and Recycling,Infrastructure and Planning,57069,Waste Disposal Contracts - Private Contractors,REDACTED,Waste disposal St Agnes Sept 2018,2362186 , 16/10/2018,750.00,750.00,900.00
600042,Waste Recycling (Code Closed),Waste and Recycling,Infrastructure and Planning,46119,Haulage Costs,Island Carriers,Island Carriers - Waste/Recycling for November 2018,2415607 , 13/12/2018,"1,812.25","1,812.25","2,174.69"
600042,Waste Recycling (Code Closed),Waste and Recycling,Infrastructure and Planning,43506,Professional Fees - Legal,Currie & Brown UK Ltd,Pre Contract as per email dated 23/02/2017,2347265 , 02/10/2018,695.00,695.00,834.00
600042,Waste Recycling (Code Closed),Waste and Recycling,Infrastructure and Planning,22002,Electricity,Edf Energy Plc,EDF Metered Bill Oct 2018,2402665 , 06/12/2018,942.17,"1,190.98","1,203.39"
600042,Waste Recycling (Code Closed),Waste and Recycling,Infrastructure and Planning,22002,Electricity,Edf Energy Plc,EDF Metered Bill Oct 2018,2402665 , 06/12/2018,0.78,"1,190.98","1,203.39"
600042,Waste Recycling (Code Closed),Waste and Recycling,Infrastructure and Planning,22002,Electricity,Edf Energy Plc,EDF Metered Bill Oct 2018,2402665 , 06/12/2018,248.03,"1,190.98","1,203.39"
600050,Water & Sewerage,Operational Services,Infrastructure and Planning,49002,Miscellaneous Expenditure,South West Water Ltd,Analysis of water samples,2400074 , 22/11/2018,641.04,641.04,641.04
600050,Water & Sewerage,Operational Services,Infrastructure and Planning,49002,Miscellaneous Expenditure,Oil & Water Supplies Ltd,Caustic Soda IBC Twaddle 60 - Sodium Hydroxide 1250kgs with tamper proof seal,2415550 , 13/12/2018,"1,387.00","1,387.00","1,664.40"
600050,Water & Sewerage,Operational Services,Infrastructure and Planning,45105,Telephone Usage,The Phone Co-Op Ltd,call internet standing orders,2261197 , 29/11/2018,-11.00,"1,112.51","1,335.01"
600050,Water & Sewerage,Operational Services,Infrastructure and Planning,45105,Telephone Usage,The Phone Co-Op Ltd,call internet standing orders,2261197 , 29/11/2018,-11.00,"1,112.51","1,335.01"
600050,Water & Sewerage,Operational Services,Infrastructure and Planning,45105,Telephone Usage,The Phone Co-Op Ltd,call internet standing orders,2261197 , 29/11/2018,1.20,"1,112.51","1,335.01"
600050,Water & Sewerage,Operational Services,Infrastructure and Planning,45105,Telephone Usage,The Phone Co-Op Ltd,call internet standing orders,2261197 , 29/11/2018,1.20,"1,112.51","1,335.01"
600050,Water & Sewerage,Operational Services,Infrastructure and Planning,45105,Telephone Usage,The Phone Co-Op Ltd,call internet standing orders,2261197 , 29/11/2018,1.20,"1,112.51","1,335.01"
600050,Water & Sewerage,Operational Services,Infrastructure and Planning,45105,Telephone Usage,The Phone Co-Op Ltd,call internet standing orders,2261197 , 29/11/2018,1.20,"1,112.51","1,335.01"
600050,Water & Sewerage,Operational Services,Infrastructure and Planning,45105,Telephone Usage,The Phone Co-Op Ltd,call internet standing orders,2261197 , 29/11/2018,1.20,"1,112.51","1,335.01"
600050,Water & Sewerage,Operational Services,Infrastructure and Planning,45105,Telephone Usage,The Phone Co-Op Ltd,call internet standing orders,2261197 , 29/11/2018,8.12,"1,112.51","1,335.01"
600050,Water & Sewerage,Operational Services,Infrastructure and Planning,45105,Telephone Usage,The Phone Co-Op Ltd,call internet standing orders,2261197 , 29/11/2018,0.93,"1,112.51","1,335.01"
600050,Water & Sewerage,Operational Services,Infrastructure and Planning,45105,Telephone Usage,The Phone Co-Op Ltd,call internet standing orders,2261197 , 29/11/2018,12.49,"1,112.51","1,335.01"
600050,Water & Sewerage,Operational Services,Infrastructure and Planning,45105,Telephone Usage,The Phone Co-Op Ltd,call internet standing orders,2261197 , 29/11/2018,22.00,"1,112.51","1,335.01"
600050,Water & Sewerage,Operational Services,Infrastructure and Planning,45105,Telephone Usage,The Phone Co-Op Ltd,call internet standing orders,2261197 , 29/11/2018,11.00,"1,112.51","1,335.01"
600050,Water & Sewerage,Operational Services,Infrastructure and Planning,45215,Internet/Broadband charges,The Phone Co-Op Ltd,call internet standing orders,2261197 , 29/11/2018,36.00,"1,112.51","1,335.01"
600050,Water & Sewerage,Operational Services,Infrastructure and Planning,45215,Internet/Broadband charges,The Phone Co-Op Ltd,call internet standing orders,2261197 , 29/11/2018,17.00,"1,112.51","1,335.01"
600050,Water & Sewerage,Operational Services,Infrastructure and Planning,49002,Miscellaneous Expenditure,Idexx Laboratories Limited,Consumables for microbiological testing,2337986 , 09/10/2018,723.06,723.06,867.67
600050,Water & Sewerage,Operational Services,Infrastructure and Planning,49002,Miscellaneous Expenditure,Tecker Ltd,Cost for recent maintenance support water,2357438 , 11/10/2018,"6,084.00","6,084.00","7,300.80"
600050,Water & Sewerage,Operational Services,Infrastructure and Planning,49002,Miscellaneous Expenditure,Pfs (Helston) Ltd,"Various plasson pipe fittings, 2GS07M-FRK 0.75kw motor/cables, resin joint, maintenance spray, gloves, food safe grease, lanterns, socket, waterproofs, granules, conditioning fluid",2374700 , 23/10/2018,"2,902.05","2,902.05","3,482.44"
600050,Water & Sewerage,Operational Services,Infrastructure and Planning,49002,Miscellaneous Expenditure,Oil & Water Supplies Ltd,2 x PRO-TEK Clean HC LBR Sodium Hypochlorite 250 kgs,2342219 , 02/10/2018,510.13,510.13,612.16
600050,Water & Sewerage,Operational Services,Infrastructure and Planning,49002,Miscellaneous Expenditure,Oil & Water Supplies Ltd,"20mm, 25mm, 32mm, 50mm, 63mm fittings, pipe insert, stainless steel wrap round repair clamps",2352873 , 02/10/2018,"1,206.00","1,206.00","1,447.20"
600050,Water & Sewerage,Operational Services,Infrastructure and Planning,49002,Miscellaneous Expenditure,Pfs (Helston) Ltd,"Pacer 207p-5 pump, Tsurumi TEW 1632 pump, suction pipe, suction fittings",2358678 , 09/10/2018,"2,820.64","2,820.64","3,384.77"
600050,Water & Sewerage,Operational Services,Infrastructure and Planning,49002,Miscellaneous Expenditure,Evans Electricals,Setting up and monitoring power logging equipment at Desalination Plant,2391244 , 15/11/2018,250.00,580.00,514.00
600050,Water & Sewerage,Operational Services,Infrastructure and Planning,49002,Miscellaneous Expenditure,Evans Electricals,Setting up and monitoring power logging equipment at Desalination Plant,2391244 , 15/11/2018,330.00,580.00,514.00
600050,Water & Sewerage,Operational Services,Infrastructure and Planning,49002,Miscellaneous Expenditure,Evans Electricals,Works involved with sea water intake winterization,2391249 , 15/11/2018,"1,026.00","1,026.00",820.80
600050,Water & Sewerage,Operational Services,Infrastructure and Planning,49002,Miscellaneous Expenditure,Evans Electricals,Works involved with sea water intake winterization,2391249 , 15/11/2018,"-1,026.80","1,026.00",820.80
600050,Water & Sewerage,Operational Services,Infrastructure and Planning,49002,Miscellaneous Expenditure,Evans Electricals,Works involved with sea water intake winterization,2391249 , 15/11/2018,"1,026.80","1,026.00",820.80
600050,Water & Sewerage,Operational Services,Infrastructure and Planning,49002,Miscellaneous Expenditure,Falmouth Divers Ltd,"Aid with removal of sea water intake pump, operatives, accommodation, inflatable boat.",2415111 , 18/12/2018,"2,112.50","2,112.50","2,535.00"
600050,Water & Sewerage,Operational Services,Infrastructure and Planning,46108,Board and Lodging,Tregarthen's Hotel (Scilly) Ltd,Accommodation,2417384 , 20/12/2018,533.33,533.33,640.00
600050,Water & Sewerage,Operational Services,Infrastructure and Planning,49002,Miscellaneous Expenditure,Pfs (Helston) Ltd,"Softener salt tablets, flanged water meter, euro-check valve, double flanged pipe, hex bolts, plain nuts, s/s washers, fullface gaskets,",2386202 , 13/11/2018,"1,965.79","1,965.79","2,358.94"
600050,Water & Sewerage,Operational Services,Infrastructure and Planning,49002,Miscellaneous Expenditure,Oil & Water Supplies Ltd,"Pump end, 102L01272 - ZN616 10-6 B/S",2406636 , 04/12/2018,"3,678.00","3,678.00","4,413.60"
600050,Water & Sewerage,Operational Services,Infrastructure and Planning,49002,Miscellaneous Expenditure,Oil & Water Supplies Ltd,32 x Anti-scalent Pro Tek  R.O Plus 11 (25kg drums) treatment chemical,2407788 , 04/12/2018,"3,222.40","3,222.40","3,866.88"
600050,Water & Sewerage,Operational Services,Infrastructure and Planning,22002,Electricity,British Gas,3/10 - 30/10,2415930 , 13/12/2018,754.55,754.55,905.46
600050,Water & Sewerage,Operational Services,Infrastructure and Planning,22002,Electricity,British Gas Business,Desalination Plant,2217982 , 28/12/2018,"6,510.85","6,510.85","7,813.02"
600050,Water & Sewerage,Operational Services,Infrastructure and Planning,49002,Miscellaneous Expenditure,Terran Design Systems Ltd,"PUR multi core cable, valve switch stations, 4"" Bray butterfly valve with Bray actuator and Festo pneumatic control valve",2366774 , 18/10/2018,"1,969.00","1,969.00","2,362.80"
600050,Water & Sewerage,Operational Services,Infrastructure and Planning,49002,Miscellaneous Expenditure,Palintest Ltd,AP011 x 4AP031/1 x 4AP130 x 3PT435 x 4AP155 x 1AP173 x 1AP109 x 1PL404 x 2Plus remote area delivery and hazardous goods fee 97,2377016 , 01/11/2018,756.70,756.70,908.04
600050,Water & Sewerage,Operational Services,Infrastructure and Planning,49002,Miscellaneous Expenditure,Terran Design Systems Ltd,"Repair of 7.5kw invertor for boreholes, spare invertor for RO Plant, Data Station plus LE interface with power meters, isolated USB interface for system",2375262 , 25/10/2018,"2,584.00","2,584.00","3,100.80"
600050,Water & Sewerage,Operational Services,Infrastructure and Planning,22002,Electricity,British Gas Business,Desalination Plant,2217985 , 28/12/2018,"1,699.47","1,699.47","2,039.36"
600050,Water & Sewerage,Operational Services,Infrastructure and Planning,49002,Miscellaneous Expenditure,Star Castle Hotel,Accommodation,2365551 , 23/10/2018,812.50,812.50,975.00
600050,Water & Sewerage,Operational Services,Infrastructure and Planning,49002,Miscellaneous Expenditure,Oil & Water Supplies Ltd,Caustic soda twaddle 60 - sodium hydroxide IBC x 3 with tamper proof seal plus rental at ADR and carriage,2368327 , 23/10/2018,"4,541.00","4,541.00","5,449.20"
600050,Water & Sewerage,Operational Services,Infrastructure and Planning,22002,Electricity,British Gas Business,Desalination Plant,2217990 , 28/12/2018,"1,973.60","1,973.60","2,368.32"
600050,Water & Sewerage,Operational Services,Infrastructure and Planning,49002,Miscellaneous Expenditure,Tresco Estate,Boating for sampling,2381749 , 06/11/2018,"1,067.50","1,067.50","1,067.50"
600050,Water & Sewerage,Operational Services,Infrastructure and Planning,49002,Miscellaneous Expenditure,South West Water Ltd,Analysis of water samples,2415005 , 20/12/2018,445.14,445.14,534.17
600050,Water & Sewerage,Operational Services,Infrastructure and Planning,22002,Electricity,British Gas,3/10 - 29/10,2415910 , 13/12/2018,"4,732.22","4,732.22","5,678.66"
600050,Water & Sewerage,Operational Services,Infrastructure and Planning,22002,Electricity,British Gas Business,Desalination Plant,2217980 , 28/12/2018,"1,018.45","1,018.45","1,222.14"
600050,Water & Sewerage,Operational Services,Infrastructure and Planning,49002,Miscellaneous Expenditure,Idexx Laboratories Limited,Consumables for microbiological testing,2350628 , 23/10/2018,420.24,420.24,504.29
600050,Water & Sewerage,Operational Services,Infrastructure and Planning,49002,Miscellaneous Expenditure,Terran Design Systems Ltd,"IO for RO Plant valve monitoring, 3 stations- Iron Removal, RO lanes and Multi Media filters",2375264 , 25/10/2018,"1,958.54","1,958.54","2,350.25"
600050,Water & Sewerage,Operational Services,Infrastructure and Planning,49002,Miscellaneous Expenditure,South West Water Ltd,2 x specialist training courses for Water Officer and Water Operative,2415003 , 27/12/2018,776.00,776.00,931.20
600050,Water & Sewerage,Operational Services,Infrastructure and Planning,49002,Miscellaneous Expenditure,Falmouth Divers Ltd,"Mobilisation/demobilisation call out for Falmouth Divers, FD Grey Bear  (including crew), vessel overtime, vessel fuel",2415114 , 18/12/2018,"4,800.00","4,800.00","5,760.00"
600050,Water & Sewerage,Operational Services,Infrastructure and Planning,49002,Miscellaneous Expenditure,Pfs (Helston) Ltd,"Pump pliers, cleaning powder, conditioning fluid, diverter, BSP fittings, strainers, valves, hosetail, cam locks, oil, MDPE pipe, plasson fittings, inserts, galvanised trailer, storage of vehicle.",2340411 , 09/10/2018,"2,108.44","2,108.44","2,530.15"
600050,Water & Sewerage,Operational Services,Infrastructure and Planning,49002,Miscellaneous Expenditure,Pfs (Helston) Ltd,"Pump pliers, cleaning powder, conditioning fluid, diverter, BSP fittings, strainers, valves, hosetail, cam locks, oil, MDPE pipe, plasson fittings, inserts, galvanised trailer, storage of vehicle.",2340411 , 09/10/2018,"-1,958.44","2,108.44","2,530.15"
600050,Water & Sewerage,Operational Services,Infrastructure and Planning,49002,Miscellaneous Expenditure,Pfs (Helston) Ltd,"Pump pliers, cleaning powder, conditioning fluid, diverter, BSP fittings, strainers, valves, hosetail, cam locks, oil, MDPE pipe, plasson fittings, inserts, galvanised trailer, storage of vehicle.",2340411 , 09/10/2018,"1,958.44","2,108.44","2,530.15"
600050,Water & Sewerage,Operational Services,Infrastructure and Planning,41303,Pool Chemical,Oil & Water Supplies Ltd,2 x pro tek clean hr lbr sodium hypochlorite 250kgs drums,2358863 , 18/10/2018,"1,020.26","1,020.26","1,224.31"
600050,Water & Sewerage,Operational Services,Infrastructure and Planning,49002,Miscellaneous Expenditure,Oil & Water Supplies Ltd,2 x PRO-TEK Clean HC LBR Sodium Hypochlorite 250 kgs,2358863 , 18/10/2018,"1,020.26","1,020.26","1,224.31"
600050,Water & Sewerage,Operational Services,Infrastructure and Planning,49002,Miscellaneous Expenditure,Oil & Water Supplies Ltd,2 x PRO-TEK Clean HC LBR Sodium Hypochlorite 250 kgs,2358863 , 18/10/2018,"-1,020.26","1,020.26","1,224.31"
600050,Water & Sewerage,Operational Services,Infrastructure and Planning,43532,Professional Fees - Other,Tecker Ltd,Water Support on Bryher from the 1st - 15th October,2382472 , 13/11/2018,"8,946.00","8,946.00","10,735.20"
600050,Water & Sewerage,Operational Services,Infrastructure and Planning,49002,Miscellaneous Expenditure,Sibleys Fuel & Marine Services,Fuel,2385782 , 27/11/2018,706.85,"6,756.85","7,457.15"
600050,Water & Sewerage,Operational Services,Infrastructure and Planning,49002,Miscellaneous Expenditure,Sibleys Fuel & Marine Services,Fuel,2385782 , 27/11/2018,736.86,"6,756.85","7,457.15"
600050,Water & Sewerage,Operational Services,Infrastructure and Planning,49002,Miscellaneous Expenditure,Sibleys Fuel & Marine Services,Fuel,2385782 , 27/11/2018,-706.85,"6,756.85","7,457.15"
600050,Water & Sewerage,Operational Services,Infrastructure and Planning,49002,Miscellaneous Expenditure,Oil & Water Supplies Ltd,"Caustic soda IBC twaddle 60, Sodium Hydroxide with tamper proof seal.",2392174 , 15/11/2018,"1,387.00","1,387.00","1,664.40"
600050,Water & Sewerage,Operational Services,Infrastructure and Planning,49002,Miscellaneous Expenditure,Oil & Water Supplies Ltd,2 x PRO Tek Clean HR LBR Sodium Hypochlorite 250 kg drums,2415549 , 13/12/2018,"1,020.26","1,020.26","1,224.31"
600050,Water & Sewerage,Operational Services,Infrastructure and Planning,49002,Miscellaneous Expenditure,Idexx Laboratories Limited,Consumables for microbiological testing,2337990 , 09/10/2018,420.24,420.24,504.29
600050,Water & Sewerage,Operational Services,Infrastructure and Planning,49002,Miscellaneous Expenditure,Pfs (Helston) Ltd,"Hydranautic low fouling 4040 membranes, g-gear track blk/navy",2374698 , 23/10/2018,"2,256.50","2,256.50","2,707.80"
600050,Water & Sewerage,Operational Services,Infrastructure and Planning,22002,Electricity,British Gas,29/9 - 28/10,2415886 , 13/12/2018,531.21,531.21,637.45
600050,Water & Sewerage,Operational Services,Infrastructure and Planning,46108,Board and Lodging,Tregarthen's Hotel (Scilly) Ltd,Accommodation,2417383 , 20/12/2018,533.33,533.33,640.00
600050,Water & Sewerage,Operational Services,Infrastructure and Planning,49002,Miscellaneous Expenditure,Star Castle Hotel,Accommodation,2371041 , 06/11/2018,"1,062.50","1,062.50","1,275.00"
600050,Water & Sewerage,Operational Services,Infrastructure and Planning,49002,Miscellaneous Expenditure,Star Castle Hotel,Accommodation,2371041 , 06/11/2018,"-1,168.75","1,062.50","1,275.00"
600050,Water & Sewerage,Operational Services,Infrastructure and Planning,49002,Miscellaneous Expenditure,Star Castle Hotel,Accommodation,2371041 , 06/11/2018,"1,168.75","1,062.50","1,275.00"
600050,Water & Sewerage,Operational Services,Infrastructure and Planning,41303,Pool Chemical,Oil & Water Supplies Ltd,2 x pro tek clean hr lbr sodium hypochlorite 250kgs drums,2376207 , 06/11/2018,"1,020.26","1,020.26","1,224.31"
600050,Water & Sewerage,Operational Services,Infrastructure and Planning,49002,Miscellaneous Expenditure,Sibleys Fuel & Marine Services,Fuel,2385748 , 27/11/2018,177.75,"2,168.09","2,479.58"
600050,Water & Sewerage,Operational Services,Infrastructure and Planning,49002,Miscellaneous Expenditure,Richard Hand Haulage,Richard Hand Haulage for the Water Department August.,2362190 , 18/10/2018,"1,784.99","1,784.99","2,141.99"
600050,Water & Sewerage,Operational Services,Infrastructure and Planning,49002,Miscellaneous Expenditure,Oil & Water Supplies Ltd,"Supapleat FFC, Silicone, Part No 24PP005-40HSA",2368324 , 23/10/2018,"4,725.00","4,725.00","5,670.00"
600050,Water & Sewerage,Operational Services,Infrastructure and Planning,49002,Miscellaneous Expenditure,Sibleys Fuel & Marine Services,Fuel,2382462 , 22/11/2018,50.38,"3,402.50","3,811.60"
600050,Water & Sewerage,Operational Services,Infrastructure and Planning,49002,Miscellaneous Expenditure,Sibleys Fuel & Marine Services,Fuel,2382462 , 22/11/2018,58.32,"3,402.50","3,811.60"
600050,Water & Sewerage,Operational Services,Infrastructure and Planning,49002,Miscellaneous Expenditure,Sibleys Fuel & Marine Services,Fuel,2382462 , 22/11/2018,52.65,"3,402.50","3,811.60"
600050,Water & Sewerage,Operational Services,Infrastructure and Planning,49002,Miscellaneous Expenditure,Sibleys Fuel & Marine Services,Fuel,2382462 , 22/11/2018,56.76,"3,402.50","3,811.60"
600050,Water & Sewerage,Operational Services,Infrastructure and Planning,49002,Miscellaneous Expenditure,Sibleys Fuel & Marine Services,Fuel,2382462 , 22/11/2018,46.79,"3,402.50","3,811.60"
600050,Water & Sewerage,Operational Services,Infrastructure and Planning,49002,Miscellaneous Expenditure,Terran Design Systems Ltd,"Water level switches for borehole overfill protection, 4 core CY cable 200 metres, junction boxes/glands, carriage, black shielded 305 MT Ethernet cable, valve switch stations (mechanical microswitch drum",2366773 , 18/10/2018,"2,153.00","2,153.00","2,583.60"
600060,Airport,Operational Services,Infrastructure and Planning,49002,Miscellaneous Expenditure,Serco Ltd,Supervisor Initial course starting 26/11/18,2410835 , 27/12/2018,"9,240.00","9,240.00","11,088.00"
600060,Airport,Operational Services,Infrastructure and Planning,45105,Telephone Usage,The Phone Co-Op Ltd,004069722 call internet standing orders,2261197 , 29/11/2018,22.00,"1,112.51","1,335.01"
600060,Airport,Operational Services,Infrastructure and Planning,41104,Equipment & Plant - Direct Purchase,ATG Airports Ltd,ATG - Electrical supplies   1st April 2018 - 31st March 2019,2377077 , 30/10/2018,"1,874.30","1,874.30","2,249.16"
600060,Airport,Operational Services,Infrastructure and Planning,41104,Equipment & Plant - Direct Purchase,ATG Airports Ltd,ATG - Electrical supplies   1st April 2018 - 31st March 2019,2377077 , 30/10/2018,"2,249.16","1,874.30","2,249.16"
600060,Airport,Operational Services,Infrastructure and Planning,41104,Equipment & Plant - Direct Purchase,ATG Airports Ltd,ATG - Electrical supplies   1st April 2018 - 31st March 2019,2377077 , 30/10/2018,"-2,249.16","1,874.30","2,249.16"
600060,Airport,Operational Services,Infrastructure and Planning,43573,Conveyancing Fees,Mason Clark Associates Ltd,Mason Clark Associates Ltd - Analysis and Design of High Mast Foundation at St Mary's Airport,2362236 , 16/10/2018,900.00,900.00,"1,080.00"
600060,Airport,Operational Services,Infrastructure and Planning,25003,Fire Equipment,Fire Crest Fire Protection,Redcare- Replace autodial equipment-St Mary's Airport + Flights,2370983 , 23/10/2018,298.00,690.00,828.00
600060,Airport,Operational Services,Infrastructure and Planning,25003,Fire Equipment,Fire Crest Fire Protection,Redcare Annual Monitoring Charge at St Mary's Airport,2370983 , 23/10/2018,210.00,690.00,828.00
600060,Airport,Operational Services,Infrastructure and Planning,31602,Air Travel,Fire Crest Fire Protection,Redcare- Replace autodial equipment-St Mary's Airport + Flights,2370983 , 23/10/2018,182.00,690.00,828.00
600060,Airport,Operational Services,Infrastructure and Planning,49002,Miscellaneous Expenditure,Serco Ltd,"Firefighter Initial Course, starting 3/9/18",2342179 , 04/10/2018,"10,200.00","10,200.00","12,240.00"
600060,Airport,Operational Services,Infrastructure and Planning,31105,Vehicle Parts,Godiva Ltd,"Godiva Ltd - Parts ordered, St Mary's Airport Fire 1 repairs",2382247 , 06/11/2018,"2,118.76","2,118.76","2,542.52"
600060,Airport,Operational Services,Infrastructure and Planning,43501,External Testing & Analysis,Isles Of Scilly Steamship Co,IOS Skybus Annual AGL flight check at St Mary's Airport @ 600.00 per hour,2395072 , 20/11/2018,650.00,650.00,780.00
600060,Airport,Operational Services,Infrastructure and Planning,89209,Other Professional Fees,Paul Fassam Geomatics,Paul Fassam Geomatics St Mary's Airport VDF ground field plots and helicopter location 30th August 2018,2363320 , 16/10/2018,"2,612.00","2,612.00","3,134.40"
600060,Airport,Operational Services,Infrastructure and Planning,31102,Vehicle Repair and Maintenance,David Parr Engineering,"D Parr Engineering Contract
All Airport Vehicles & Machinery
1st April 2018 - 31st March 2019",2401808 , 27/11/2018,"1,160.00","1,160.00","1,392.00"
600060,Airport,Operational Services,Infrastructure and Planning,21110,R&M - Electrical - Planned,Power Electrics (Bristol) Ltd,Power Electrics Various Generator related work,2375258 , 25/10/2018,862.00,862.00,"1,034.40"
600060,Airport,Operational Services,Infrastructure and Planning,12301,Training,In Safe Hands Health & Safety Training & Consultancy Ltd,Delivery of 1 day EFAW and 2 day FAW requalification,2392074 , 15/11/2018,702.50,895.00,"1,074.00"
600060,Airport,Operational Services,Infrastructure and Planning,43534,Licences,One Off Payments,Line 342,2415736 , 13/12/2018,698.80,698.80,698.80
600060,Airport,Operational Services,Infrastructure and Planning,12301,Training,Serco Ltd,Revalidation Training IFTC,2391712 , 06/12/2018,"2,380.00","2,380.00","2,856.00"
600060,Airport,Operational Services,Infrastructure and Planning,41102,Equipment Rental,Servicom (High Tech) Ltd,"Hire and Servicing of Airport UHF radios
1st April 2018 - 31st March 2019",2356600 , 04/10/2018,778.16,778.16,933.78
600060,Airport,Operational Services,Infrastructure and Planning,43505,Consultants - Other,Paul Fassam Geomatics,Paul Fassam Geomatics CAP 232 Apron Layout Survey & Drawings,2363319 , 18/10/2018,"1,000.00","1,000.00","1,200.00"
600060,Airport,Operational Services,Infrastructure and Planning,21110,R&M - Electrical - Planned,Power Electrics (Bristol) Ltd,Power Electrics Service breakdown Qoutation to investigate Fuel feed fault at St Mary's Airport. Ref 0000440547 on the 2nd October 2018,2368267 , 23/10/2018,590.00,590.00,708.00
600060,Airport,Operational Services,Infrastructure and Planning,45103,Line Rental & Installation,The Phone Co-Op Ltd,"LINE RENTALS & CALLS (A), LINE RENTALS & CALLS (F), BROADBAND (A), BROADBAND (F)",2368296 , 06/11/2018,239.68,489.41,582.47
600060,Airport,Operational Services,Infrastructure and Planning,45215,Internet/Broadband charges,The Phone Co-Op Ltd,"LINE RENTALS & CALLS (A), LINE RENTALS & CALLS (F), BROADBAND (A), BROADBAND (F)",2368296 , 06/11/2018,56.01,489.41,582.47
600060,Airport,Operational Services,Infrastructure and Planning,12301,Training,Serco Ltd,Revalidation Training IFTC ,2391715 , 06/12/2018,"2,380.00","2,380.00","2,856.00"
600060,Airport,Operational Services,Infrastructure and Planning,31102,Vehicle Repair and Maintenance,David Parr Engineering,D Parr Engineering   All Airport vehicles breakdown & repair as required @ 38.00 per hr  1st April 2018 - 31st March 2019,2417044 , 18/12/2018,"1,216.00","1,216.00","1,459.20"
600060,Airport,Operational Services,Infrastructure and Planning,21110,R&M - Electrical - Planned,Power Electrics (Bristol) Ltd,Power Electrics Various Generator related work,2375261 , 25/10/2018,868.65,868.65,"1,042.38"
600060,Airport,Operational Services,Infrastructure and Planning,21110,R&M - Electrical - Planned,Power Electrics (Bristol) Ltd,Power Electrics Various Generator related work,2401789 , 29/11/2018,"3,252.40","3,252.40","3,902.88"
600060,Airport,Operational Services,Infrastructure and Planning,41102,Equipment Rental,Servicom (High Tech) Ltd,"Hire and Servicing of Airport UHF radios
1st April 2018 - 31st March 2019",2382305 , 06/11/2018,778.16,778.16,933.78
600060,Airport,Operational Services,Infrastructure and Planning,31102,Vehicle Repair and Maintenance,David Parr Engineering,D Parr Engineering   All Airport vehicles breakdown & repair as required @ 38.00 per hr  1st April 2018 - 31st March 2019,2382383 , 06/11/2018,"2,128.00","2,128.00","2,553.60"
600060,Airport,Operational Services,Infrastructure and Planning,31204,Derv Purchases,Sibleys Fuel & Marine Services,Airport & Airport Fire vehicles fuel 1st April 2018 - 31st March 2019,2385748 , 27/11/2018,42.74,"2,168.09","2,479.58"
600060,Airport,Operational Services,Infrastructure and Planning,31204,Derv Purchases,Sibleys Fuel & Marine Services,Airport & Airport Fire vehicles fuel 1st April 2018 - 31st March 2019,2385748 , 27/11/2018,88.74,"2,168.09","2,479.58"
600060,Airport,Operational Services,Infrastructure and Planning,31204,Derv Purchases,Sibleys Fuel & Marine Services,Airport & Airport Fire vehicles fuel 1st April 2018 - 31st March 2019,2385748 , 27/11/2018,-42.74,"2,168.09","2,479.58"
600060,Airport,Operational Services,Infrastructure and Planning,21101,R&M - Buildings - Planned,Wright Construction,Wright Construction - installation of Mast base for lighting rig as per quote,2406514 , 04/12/2018,"4,400.00","4,400.00","5,280.00"
600060,Airport,Operational Services,Infrastructure and Planning,45103,Line Rental & Installation,The Phone Co-Op Ltd,LINE RENTALS & CALLS & BROADBAND,2405425 , 29/11/2018,24.10,489.41,582.47
600060,Airport,Operational Services,Infrastructure and Planning,45103,Line Rental & Installation,The Phone Co-Op Ltd,LINE RENTALS & CALLS & BROADBAND,2405425 , 29/11/2018,-24.10,489.41,582.47
600060,Airport,Operational Services,Infrastructure and Planning,45103,Line Rental & Installation,The Phone Co-Op Ltd,LINE RENTALS & CALLS & BROADBAND,2405425 , 29/11/2018,239.68,489.41,582.47
600060,Airport,Operational Services,Infrastructure and Planning,45215,Internet/Broadband charges,The Phone Co-Op Ltd,LINE RENTALS & CALLS & BROADBAND,2405425 , 29/11/2018,56.01,489.41,582.47
600060,Airport,Operational Services,Infrastructure and Planning,43532,Professional Fees - Other,Civil Aviation Authority,CAA Fees & Charges   1st April 2018 - 31st March 2019,2410838 , 27/12/2018,832.55,832.55,832.55
600060,Airport,Operational Services,Infrastructure and Planning,31102,Vehicle Repair and Maintenance,David Parr Engineering,"D Parr Engineering Contract
All Airport Vehicles & Machinery
1st April 2018 - 31st March 2019",2362123 , 11/10/2018,"1,160.00","1,160.00","1,392.00"
600060,Airport,Operational Services,Infrastructure and Planning,21110,R&M - Electrical - Planned,Cornwall Refrigeration solutions Ltd,Airport Ground Lighting Repairs & Maintenance 1st April 2018 - 31st March 2019,2365641 , 18/10/2018,"1,420.00","1,420.00","1,704.00"
600060,Airport,Operational Services,Infrastructure and Planning,22002,Electricity,Edf Energy Plc,,2374772 , 08/11/2018,"1,705.76","1,705.76","2,046.91"
600060,Airport,Operational Services,Infrastructure and Planning,31102,Vehicle Repair and Maintenance,David Parr Engineering,D Parr Engineering   All Airport vehicles breakdown & repair as required @ 38.00 per hr  1st April 2018 - 31st March 2019,2401810 , 27/11/2018,"2,771.60","2,771.60","3,325.92"
600060,Airport,Operational Services,Infrastructure and Planning,22001,Heating Oil,Sibleys Fuel & Marine Services,"Oil for Airport Boiler & Hot Rig
1st April 2018 - 31st March 2019",2410806 , 06/12/2018,50.00,"1,822.36","1,941.32"
600060,Airport,Operational Services,Infrastructure and Planning,22001,Heating Oil,Sibleys Fuel & Marine Services,"Oil for Airport Boiler & Hot Rig
1st April 2018 - 31st March 2019",2410806 , 06/12/2018,"1,615.15","1,822.36","1,941.32"
600060,Airport,Operational Services,Infrastructure and Planning,31204,Derv Purchases,Sibleys Fuel & Marine Services,Airport & Airport Fire vehicles fuel 1st April 2018 - 31st March 2019,2410806 , 06/12/2018,42.48,"1,822.36","1,941.32"
600060,Airport,Operational Services,Infrastructure and Planning,45210,IT Communications,Digital Navigators,Digital Navigators Annual PO up to the 31st March 2019,2358992 , 09/10/2018,"7,000.00","7,000.00","7,000.00"
600060,Airport,Operational Services,Infrastructure and Planning,22001,Heating Oil,Sibleys Fuel & Marine Services,"Oil for Airport Boiler & Hot Rig
1st April 2018 - 31st March 2019",2382454 , 08/11/2018,590.96,627.49,664.35
600060,Airport,Operational Services,Infrastructure and Planning,31204,Derv Purchases,Sibleys Fuel & Marine Services,Airport & Airport Fire vehicles fuel 1st April 2018 - 31st March 2019,2382454 , 08/11/2018,-590.96,627.49,664.35
600060,Airport,Operational Services,Infrastructure and Planning,31204,Derv Purchases,Sibleys Fuel & Marine Services,Airport & Airport Fire vehicles fuel 1st April 2018 - 31st March 2019,2382454 , 08/11/2018,590.96,627.49,664.35
600060,Airport,Operational Services,Infrastructure and Planning,31204,Derv Purchases,Sibleys Fuel & Marine Services,Airport & Airport Fire vehicles fuel 1st April 2018 - 31st March 2019,2382454 , 08/11/2018,36.53,627.49,664.35
600060,Airport,Operational Services,Infrastructure and Planning,31204,Derv Purchases,Sibleys Fuel & Marine Services,Airport & Airport Fire vehicles fuel 1st April 2018 - 31st March 2019,2382454 , 08/11/2018,-627.49,627.49,664.35
600060,Airport,Operational Services,Infrastructure and Planning,31204,Derv Purchases,Sibleys Fuel & Marine Services,Airport & Airport Fire vehicles fuel 1st April 2018 - 31st March 2019,2382454 , 08/11/2018,627.49,627.49,664.35
600060,Airport,Operational Services,Infrastructure and Planning,41108,Audio/Visual Equipment,Servicom (High Tech) Ltd,SERVICOM - MOTOROLA DM46OO BASE UNIT & ICOM MOBILES FOR FIRE VEHICLES AT ST MARY'S AIRPORT,2391741 , 15/11/2018,"2,932.15","2,932.15","3,518.57"
600060,Airport,Operational Services,Infrastructure and Planning,41102,Equipment Rental,Servicom (High Tech) Ltd,"Hire and Servicing of Airport UHF radios
1st April 2018 - 31st March 2019",2410195 , 06/12/2018,778.16,778.16,933.78
600100,Adult Social Care,Adult Social Care,Community,52001,Payments to Other Local Authorities,Cornwall Council,2018 / 2019 Contribution Safeguarding Adults,2363171 , 16/10/2018,"3,590.00","3,590.00","3,590.00"
600100,Adult Social Care,Adult Social Care,Community,12601,Professional subscriptions,Adass,ADASS Membership Subscription Jan - Dec 2018,2352890 , 02/10/2018,"1,615.00","1,615.00","1,615.00"
600100,Adult Social Care,Adult Social Care,Community,57093,REDACTED,REDACTED,REDACTED,2374665 , 30/10/2018,"3,407.14","3,407.14","3,407.14"
600100,Adult Social Care,Adult Social Care,Community,57093,REDACTED,REDACTED,REDACTED,2374665 , 30/10/2018,"-3,407.14","3,407.14","3,407.14"
600100,Adult Social Care,Adult Social Care,Community,22507,Room Hire,Cafe On the Quay,Caf� on the quay: OPE model workshop room hire,2392941 , 11/12/2018,740.00,740.00,888.00
600100,Adult Social Care,Adult Social Care,Community,22507,Room Hire,Cafe On the Quay,Caf� on the quay: OPE model workshop room hire,2392941 , 11/12/2018,-888.00,740.00,888.00
600100,Adult Social Care,Adult Social Care,Community,22507,Room Hire,Cafe On the Quay,Caf� on the quay: OPE model workshop room hire,2392941 , 11/12/2018,888.00,740.00,888.00
600101,Better Care Fund,Adult Social Care,Community,62004,REDACTED,One Off Payments,Line 314,2415748 , 13/12/2018,"1,056.00","1,056.00","1,056.00"
600101,Better Care Fund,Adult Social Care,Community,62004,REDACTED,One Off Payments,line 66,2410665 , 06/12/2018,"1,056.00","1,056.00","1,056.00"
600101,Better Care Fund,Adult Social Care,Community,57053,REDACTED,One Off Payments,line 174,2410679 , 06/12/2018,"6,691.40","6,691.40","6,691.40"
600101,Better Care Fund,Adult Social Care,Community,47013,Grants & Conts to Other Bodies - Discretionary,Age UK Cornwall & The Isles of Scilly (Age Concern In Cornwall & The Isles of Scilly),line 205,2410675 , 06/12/2018,"3,375.00","3,375.00","3,375.00"
600101,Better Care Fund,Adult Social Care,Community,43532,Professional Fees - Other,St Mary's Health Centre,"Payment agreed for 2 years rehabilitation physiotherapy role 80,000 (10,000 paid each quarter)",2362171 , 16/10/2018,"10,000.00","10,000.00","10,000.00"
600101,Better Care Fund,Adult Social Care,Community,62004,REDACTED,One Off Payments,line 187,2410667 , 06/12/2018,"1,056.00","1,056.00","1,056.00"
600101,Better Care Fund,Adult Social Care,Community,62004,REDACTED,One Off Payments,line 256,2410671 , 06/12/2018,"1,056.00","1,056.00","1,056.00"
600101,Better Care Fund,Adult Social Care,Community,47013,Grants & Conts to Other Bodies - Discretionary,Age UK Cornwall & The Isles of Scilly (Age Concern In Cornwall & The Isles of Scilly),line 137,2410673 , 06/12/2018,"3,375.00","3,375.00","3,375.00"
600101,Better Care Fund,Adult Social Care,Community,62004,REDACTED,One Off Payments,line 126,2410669 , 06/12/2018,"1,056.00","1,056.00","1,056.00"
600101,Better Care Fund,Adult Social Care,Community,31603,Other Public Transport,Tresco Estate,"Concessionary Fares single tickets for Bryher, Tresco & St. Martins, 1st April 2018 - 31st March 2019",2381840 , 06/11/2018,"1,017.50","1,017.50","1,017.50"
600101,Better Care Fund,Adult Social Care,Community,47013,Grants & Conts to Other Bodies - Discretionary,Age UK Cornwall & The Isles of Scilly (Age Concern In Cornwall & The Isles of Scilly),line 73,2410676 , 06/12/2018,"3,375.00","3,375.00","3,375.00"
600101,Better Care Fund,Adult Social Care,Community,57053,REDACTED,One Off Payments,line 250,2410683 , 06/12/2018,"6,691.40","6,691.40","6,691.40"
600101,Better Care Fund,Adult Social Care,Community,47014,REDACTED,One Off Payments,Line 352,2415724 , 13/12/2018,"3,375.00","3,375.00","3,375.00"
600101,Better Care Fund,Adult Social Care,Community,31603,Other Public Transport,Tresco Estate,"Concessionary Fares single tickets for Bryher, Tresco & St. Martins, 1st April 2018 - 31st March 2019",2360517 , 11/10/2018,"1,611.50","1,611.50","1,611.50"
600101,Better Care Fund,Adult Social Care,Community,57053,REDACTED,One Off Payments,line 296,2410684 , 06/12/2018,"6,691.40","6,691.40","6,691.40"
600103,Short and Long Term Support 18-64,Adult Social Care,Community,57053,REDACTED,One Off Payments,line 119,2410678 , 06/12/2018,"6,691.40","6,691.40","6,691.40"
600103,Short and Long Term Support 18-64,Adult Social Care,Community,57053,REDACTED,One Off Payments,line 57,2410677 , 06/12/2018,"6,691.40","6,691.40","6,691.40"
600104,Short and Long Term Support 65,Adult Social Care,Community,57034,REDACTED,REDACTED,REDACTED,2374665 , 30/10/2018,"3,407.14","3,407.14","3,407.14"
600104,Short and Long Term Support 65,Adult Social Care,Community,57066,Independent Meals at Home - Private Contractors,Cornwall Partnership NHS Foundation Trust,"Provision of Meals on Wheels for the period of 1st April 2018-31st March 2019, Meals @ 4 each, estimate of 850.00 per month before VAT.",2410106 , 11/12/2018,804.00,804.00,964.80
600104,Short and Long Term Support 65,Adult Social Care,Community,57034,REDACTED,REDACTED,REDACTED,2374941 , 25/10/2018,"3,520.71","3,520.71","3,520.71"
600104,Short and Long Term Support 65,Adult Social Care,Community,57066,Independent Meals at Home - Private Contractors,Cornwall Partnership NHS Foundation Trust,"Provision of Meals on Wheels for the period of 1st April 2018-31st March 2019, Meals @ 4 each, estimate of 850.00 per month before VAT.",2374662 , 25/10/2018,704.00,704.00,844.80
600104,Short and Long Term Support 65,Adult Social Care,Community,57065,REDACTED,REDACTED,REDACTED,2386147 , 08/11/2018,"3,500.00","3,500.00","3,500.00"
600104,Short and Long Term Support 65,Adult Social Care,Community,57066,Independent Meals at Home - Private Contractors,Cornwall Partnership NHS Foundation Trust,"Provision of Meals on Wheels for the period of 1st April 2018-31st March 2019, Meals @ 4 each, estimate of 850.00 per month before VAT.",2399738 , 22/11/2018,732.00,732.00,878.40
600104,Short and Long Term Support 65,Adult Social Care,Community,57034,REDACTED,REDACTED,REDACTED,2427915 , 27/12/2018,"3,520.71","3,520.71","3,520.71"
600105,Park House,Adult Social Care,Community,45105,Telephone Usage,The Phone Co-Op Ltd,004069722 call internet standing orders,2261197 , 29/11/2018,-0.36,"1,112.51","1,335.01"
600105,Park House,Adult Social Care,Community,45105,Telephone Usage,The Phone Co-Op Ltd,004069722 call internet standing orders,2261197 , 29/11/2018,1.20,"1,112.51","1,335.01"
600105,Park House,Adult Social Care,Community,45105,Telephone Usage,The Phone Co-Op Ltd,004069722 call internet standing orders,2261197 , 29/11/2018,6.37,"1,112.51","1,335.01"
600105,Park House,Adult Social Care,Community,45105,Telephone Usage,The Phone Co-Op Ltd,004069722 call internet standing orders,2261197 , 29/11/2018,14.99,"1,112.51","1,335.01"
600105,Park House,Adult Social Care,Community,45215,Internet/Broadband charges,The Phone Co-Op Ltd,004069722 call internet standing orders,2261197 , 29/11/2018,36.00,"1,112.51","1,335.01"
600105,Park House,Adult Social Care,Community,31807,Essential User - mileage,One Off Payments,Mileage Claim Late due to system changes,2387525 , 13/11/2018,"1,184.40","1,184.40","1,184.40"
600105,Park House,Adult Social Care,Community,22501,Rent,REDACTED,line 276,2410807 , 06/12/2018,675.00,705.00,705.00
600105,Park House,Adult Social Care,Community,22501,Rent,REDACTED,line 276,2410807 , 06/12/2018,705.00,705.00,705.00
600105,Park House,Adult Social Care,Community,22501,Rent,REDACTED,line 276,2410807 , 06/12/2018,-675.00,705.00,705.00
600105,Park House,Adult Social Care,Community,22501,Rent,REDACTED,line 206,2410796 , 06/12/2018,675.00,675.00,675.00
600105,Park House,Adult Social Care,Community,42001,Catering - Provisions,Coastal View Kitchen,Coastal View: Sept meals Inv#123460 Date:28/09/18,2357610 , 16/10/2018,800.00,800.00,800.00
600105,Park House,Adult Social Care,Community,42001,Catering - Provisions,Coastal View Kitchen,Weekly  meals for Park House from CVK invoice number 123459,2357610 , 16/10/2018,-800.00,800.00,800.00
600105,Park House,Adult Social Care,Community,42001,Catering - Provisions,Coastal View Kitchen,Weekly  meals for Park House from CVK invoice number 123459,2357610 , 16/10/2018,800.00,800.00,800.00
600105,Park House,Adult Social Care,Community,42001,Catering - Provisions,Coastal View Kitchen,CVK Invoice123463,2362221 , 18/10/2018,800.00,800.00,800.00
600105,Park House,Adult Social Care,Community,42001,Catering - Provisions,Coastal View Kitchen,Weekly  meals for Park House from CVK invoice number 123459,2362221 , 18/10/2018,-800.00,800.00,800.00
600105,Park House,Adult Social Care,Community,42001,Catering - Provisions,Coastal View Kitchen,Weekly  meals for Park House from CVK invoice number 123459,2362221 , 18/10/2018,800.00,800.00,800.00
600105,Park House,Adult Social Care,Community,42001,Catering - Provisions,Booker Ltd,ACC 704150367 LINE NUMBER 11,2430336 , 28/12/2018,450.95,"1,366.81","1,457.00"
600105,Park House,Adult Social Care,Community,42001,Catering - Provisions,Booker Ltd,ACC 704150367 LINE NUMBER 11,2430336 , 28/12/2018,915.86,"1,366.81","1,457.00"
600105,Park House,Adult Social Care,Community,11601,Agency Costs,Phoenix Health Care Services Ltd,Agency Staff for Park House,2401137 , 27/11/2018,684.50,684.50,684.50
600105,Park House,Adult Social Care,Community,22501,Rent,REDACTED,LINE 79,2410811 , 06/12/2018,675.00,675.00,675.00
600105,Park House,Adult Social Care,Community,11601,Agency Costs,Phoenix Health Care Services Ltd,Agency Staff for Park House,2401139 , 27/11/2018,"1,200.00","1,200.00","1,200.00"
600105,Park House,Adult Social Care,Community,41106,Equipment - Adaptations,Protec Healthcare LLP,REDACTED,2357590 , 09/10/2018,509.50,509.50,611.40
600105,Park House,Adult Social Care,Community,41120,Catering Equipment,RBS Commercial Card Division,23-11-2018|6517|AO RETAIL LIMITED|BL6 6QQ|5722||,2429846 , 28/12/2018,549.00,"18,505.80","19,096.64"
600105,Park House,Adult Social Care,Community,22001,Heating Oil,Sibleys Fuel & Marine Services,Park House Heating Oil for 2018,2385782 , 27/11/2018,780.55,"6,756.85","7,457.15"
600105,Park House,Adult Social Care,Community,73406,Fuel Exp,Sibleys Fuel & Marine Services,"Fuel for Park House Car
April 18 - March 19",2385782 , 27/11/2018,180.56,"6,756.85","7,457.15"
600105,Park House,Adult Social Care,Community,11601,Agency Costs,Phoenix Health Care Services Ltd,Agency Staff for Park House,2401138 , 27/11/2018,595.62,595.62,595.62
600105,Park House,Adult Social Care,Community,27012,Washroom And Hygeine Services,Protec Healthcare LLP,"healthcare equipment for park house. ordered 26/11/18. 
Inv: 68885",2415286 , 13/12/2018,"1,173.53","1,173.53","1,408.24"
600105,Park House,Adult Social Care,Community,42001,Catering - Provisions,Coastal View Kitchen,CVK: Park House Oct orders,2380109 , 06/11/2018,900.00,900.00,900.00
600105,Park House,Adult Social Care,Community,21116,R&M - Other - Planned,R & M Cleaners,R&M park house extractor fan clean,2365586 , 23/10/2018,426.00,426.00,511.20
600105,Park House,Adult Social Care,Community,22001,Heating Oil,Sibleys Fuel & Marine Services,Park House Heating Oil for 2018,2385748 , 27/11/2018,125.41,"2,168.09","2,479.58"
600105,Park House,Adult Social Care,Community,73406,Fuel Exp,Sibleys Fuel & Marine Services,"Fuel for Park House Car
April 18 - March 19",2385748 , 27/11/2018,88.19,"2,168.09","2,479.58"
600105,Park House,Adult Social Care,Community,41304,Cleaning & Domestic Materials,Protec Healthcare LLP,REDACTED,2357594 , 09/10/2018,"2,005.39","2,005.39","2,406.47"
600105,Park House,Adult Social Care,Community,41304,Cleaning & Domestic Materials,Protec Healthcare LLP,REDACTED,2357592 , 09/10/2018,665.68,665.68,798.82
600105,Park House,Adult Social Care,Community,22001,Heating Oil,Sibleys Fuel & Marine Services,Park House Heating Oil for 2018,2382462 , 22/11/2018,410.95,"3,402.50","3,811.60"
600105,Park House,Adult Social Care,Community,73406,Fuel Exp,Sibleys Fuel & Marine Services,"Fuel for Park House Car
April 18 - March 19",2382462 , 22/11/2018,50.99,"3,402.50","3,811.60"
600105,Park House,Adult Social Care,Community,22501,Rent,REDACTED,line 145,2410795 , 06/12/2018,675.00,675.00,675.00
600111,Universal Youth Services,Childrens Services,Community,43532,Professional Fees - Other,CSW Group Ltd,CCIS Data Tracking Contract CSW,2407980 , 27/12/2018,"7,500.00","7,500.00","9,000.00"
600113,Early Year Provision,Childrens Services,Community,47013,Grants & Conts to Other Bodies - Discretionary,REDACTED,EY Grant discretionary,2374868 , 25/10/2018,"1,109.62","1,109.62","1,109.62"
600113,Early Year Provision,Childrens Services,Community,21236,R&M - Playgrounds - Reactive,Ludus Leisure Ltd,Replacement Parts -G Playpark,2410179 , 06/12/2018,967.00,967.00,"1,160.40"
600113,Early Year Provision,Childrens Services,Community,41113,Curriculum Equipment,Crafti Kids Day Nursery,Resources and Cots,2357620 , 09/10/2018,700.00,700.00,700.00
600113,Early Year Provision,Childrens Services,Community,31603,Other Public Transport,Tresco Estate,EYS Boating -August 2018,2360556 , 11/10/2018,"-3,052.00","3,052.00","3,052.00"
600113,Early Year Provision,Childrens Services,Community,31603,Other Public Transport,Tresco Estate,"Tresco Boating for EYS sessions 
September -October 2018",2360556 , 11/10/2018,"3,052.00","3,052.00","3,052.00"
600113,Early Year Provision,Childrens Services,Community,31603,Other Public Transport,Tresco Estate,EYS Boating -August 2018,2360556 , 11/10/2018,"3,052.00","3,052.00","3,052.00"
600113,Early Year Provision,Childrens Services,Community,21101,R&M - Buildings - Planned,REDACTED,Sanding and oiling Town Hall floor,2410016 , 06/12/2018,720.00,"1,774.00","1,563.20"
600113,Early Year Provision,Childrens Services,Community,21101,R&M - Buildings - Planned,REDACTED,Sanding and oiling Town Hall floor,2410016 , 06/12/2018,"1,054.00","1,774.00","1,563.20"
600113,Early Year Provision,Childrens Services,Community,47013,Grants & Conts to Other Bodies - Discretionary,REDACTED,Discretionary EY funding,2415613 , 13/12/2018,547.17,547.17,547.17
600113,Early Year Provision,Childrens Services,Community,47013,Grants & Conts to Other Bodies - Discretionary,REDACTED,,2371002 , 23/10/2018,259.59,560.43,560.43
600113,Early Year Provision,Childrens Services,Community,47001,Grants & Conts to Other Bodies - Non Discretionary,REDACTED,,2371002 , 23/10/2018,300.84,560.43,560.43
600113,Early Year Provision,Childrens Services,Community,47013,Grants & Conts to Other Bodies - Discretionary,REDACTED,EY Grant,2394877 , 20/11/2018,509.00,910.12,910.12
600113,Early Year Provision,Childrens Services,Community,47001,Grants & Conts to Other Bodies - Non Discretionary,REDACTED,EY Grant,2394877 , 20/11/2018,401.12,910.12,910.12
600114,Primary Provision,Childrens Services,Community,47013,Grants & Conts to Other Bodies - Discretionary,St Agnes Out Of School Club,Discretionary out of school access primary provision,2425769 , 20/12/2018,589.98,589.98,589.98
600114,Primary Provision,Childrens Services,Community,47013,Grants & Conts to Other Bodies - Discretionary,St Martins Out Of School Club,Discretionary out of school access primary provision,2428023 , 27/12/2018,"1,376.62","1,376.62","1,376.62"
600115,Children Centres,Childrens Services,Community,43532,Professional Fees - Other,Hunrosa,Hunrosa Sleep Workshop Nov 18,2411583 , 11/12/2018,657.00,657.00,657.00
600117,Five Island School,Childrens Services,Community,47001,Grants & Conts to Other Bodies - Non Discretionary,The Five Islands School,IOSEG School share December 2018/Tier 3 SEND top-up Autumn 18,2410226 , 06/12/2018,"209,247.00","225,675.96","225,675.96"
600117,Five Island School,Childrens Services,Community,21224,R&M - Responsive Grounds maintenance,Alastair Cox Associates Ltd,A Cox Associates Ltd -Sports resurfacing FIS MUGA,2415268 , 13/12/2018,"1,971.00","1,971.00","2,365.20"
600117,Five Island School,Childrens Services,Community,47001,Grants & Conts to Other Bodies - Non Discretionary,The Five Islands School,"IOSEG School share October 2018,Q2 Pupil premium",2360427 , 11/10/2018,"217,703.49","220,934.49","220,934.49"
600117,Five Island School,Childrens Services,Community,47001,Grants & Conts to Other Bodies - Non Discretionary,The Five Islands School,"IOSEG School share October 2018,Q2 Pupil premium",2360427 , 11/10/2018,"3,231.00","220,934.49","220,934.49"
600117,Five Island School,Childrens Services,Community,47001,Grants & Conts to Other Bodies - Non Discretionary,The Five Islands School,"IOSEG School share October 2018,Q2 Pupil premium",2360427 , 11/10/2018,"217,703.49","220,934.49","220,934.49"
600117,Five Island School,Childrens Services,Community,47001,Grants & Conts to Other Bodies - Non Discretionary,The Five Islands School,"IOSEG School share October 2018,Q2 Pupil premium",2360427 , 11/10/2018,"-217,703.49","220,934.49","220,934.49"
600117,Five Island School,Childrens Services,Community,47001,Grants & Conts to Other Bodies - Non Discretionary,The Five Islands School,IOSEG School share November 2018,2389029 , 13/11/2018,"210,680.79","220,760.79","220,760.79"
600117,Five Island School,Childrens Services,Community,47001,Grants & Conts to Other Bodies - Non Discretionary,The Five Islands School,Primary PE and Sport payment 2018 AY1 Terms 1 + 2,2389029 , 13/11/2018,"10,080.00","220,760.79","220,760.79"
600120,Post 16 Travel and Accommodation Grant,Childrens Services,Community,47016,Accomodation Grants,REDACTED,2018-19 Post 16 Grant A3,2401858 , 27/11/2018,852.66,952.66,952.66
600120,Post 16 Travel and Accommodation Grant,Childrens Services,Community,47017,Travel Grant,REDACTED,2018-19 Post 16 Grant T2,2401858 , 27/11/2018,100.00,952.66,952.66
600120,Post 16 Travel and Accommodation Grant,Childrens Services,Community,47016,Accomodation Grants,REDACTED,2018-19 Post 16 Grant A3,2400061 , 22/11/2018,852.66,852.66,852.66
600120,Post 16 Travel and Accommodation Grant,Childrens Services,Community,47016,Accomodation Grants,REDACTED,2018-Post 16 Grant A2,2366494 , 18/10/2018,852.66,893.91,893.91
600120,Post 16 Travel and Accommodation Grant,Childrens Services,Community,47017,Travel Grant,REDACTED,2018-Post 16 Grant T1,2366494 , 18/10/2018,41.25,893.91,893.91
600120,Post 16 Travel and Accommodation Grant,Childrens Services,Community,47016,Accomodation Grants,REDACTED,2018-19 Post 16 Grant A2,2402505 , 27/11/2018,"1,705.33","1,905.33","1,905.33"
600120,Post 16 Travel and Accommodation Grant,Childrens Services,Community,47017,Travel Grant,REDACTED,2018-19 Post 16 Grant T1,2402505 , 27/11/2018,100.00,"1,905.33","1,905.33"
600120,Post 16 Travel and Accommodation Grant,Childrens Services,Community,47017,Travel Grant,REDACTED,2018-19 Post 16 Grant T2,2402505 , 27/11/2018,100.00,"1,905.33","1,905.33"
600120,Post 16 Travel and Accommodation Grant,Childrens Services,Community,47016,Accomodation Grants,REDACTED,2018-Post 16 Grant A2,2357439 , 04/10/2018,852.66,852.66,852.66
600120,Post 16 Travel and Accommodation Grant,Childrens Services,Community,47016,Accomodation Grants,REDACTED,2018 Post 16 Grant A2 ,2361063 , 11/10/2018,852.66,952.66,952.66
600120,Post 16 Travel and Accommodation Grant,Childrens Services,Community,47017,Travel Grant,REDACTED,2018 Post 16 Grant T1,2361063 , 11/10/2018,100.00,952.66,952.66
600120,Post 16 Travel and Accommodation Grant,Childrens Services,Community,47016,Accomodation Grants,REDACTED,2018- Post 16 Grant,2376264 , 30/10/2018,"1,705.33","1,705.33","1,705.33"
600120,Post 16 Travel and Accommodation Grant,Childrens Services,Community,47016,Accomodation Grants,REDACTED,2018-19 Post 16 Grant A3,2402032 , 27/11/2018,852.66,852.66,852.66
600120,Post 16 Travel and Accommodation Grant,Childrens Services,Community,47016,Accomodation Grants,REDACTED,2018-19 Post 16 Grant A3,2415668 , 13/12/2018,852.66,942.11,942.11
600120,Post 16 Travel and Accommodation Grant,Childrens Services,Community,47017,Travel Grant,REDACTED,2018-19 Post 16 Grant A3 ,2415668 , 13/12/2018,89.45,942.11,942.11
600120,Post 16 Travel and Accommodation Grant,Childrens Services,Community,47016,Accomodation Grants,REDACTED,2018-19 POST 16 GRANT A3 ,2409961 , 04/12/2018,852.66,857.26,857.26
600120,Post 16 Travel and Accommodation Grant,Childrens Services,Community,47017,Travel Grant,REDACTED,2018-19 POST 16 T1 ,2409961 , 04/12/2018,4.60,857.26,857.26
600120,Post 16 Travel and Accommodation Grant,Childrens Services,Community,47016,Accomodation Grants,REDACTED,2018- Post 16 Grant A2,2375228 , 25/10/2018,852.66,852.66,852.66
600120,Post 16 Travel and Accommodation Grant,Childrens Services,Community,47016,Accomodation Grants,REDACTED,2018-19 Post 16 Grant A3 ,2399633 , 22/11/2018,852.66,852.66,852.66
600120,Post 16 Travel and Accommodation Grant,Childrens Services,Community,47016,Accomodation Grants,REDACTED,2018-19 Post 16 A3 Grant,2400010 , 22/11/2018,852.66,852.66,852.66
600120,Post 16 Travel and Accommodation Grant,Childrens Services,Community,47016,Accomodation Grants,REDACTED,2018-19 Post 16 Grant A3 ,2411538 , 06/12/2018,852.66,852.66,852.66
600120,Post 16 Travel and Accommodation Grant,Childrens Services,Community,47016,Accomodation Grants,REDACTED,2018-19 Post 16 Grant A3,2413351 , 11/12/2018,852.66,952.66,952.66
600120,Post 16 Travel and Accommodation Grant,Childrens Services,Community,47017,Travel Grant,REDACTED,2018-19 Post 16 Grant T2,2413351 , 11/12/2018,100.00,952.66,952.66
600120,Post 16 Travel and Accommodation Grant,Childrens Services,Community,47016,Accomodation Grants,REDACTED,2018 Post 16 Grant A2 / 2018 Post 16 Grant T1,2358777 , 09/10/2018,852.66,879.76,879.76
600120,Post 16 Travel and Accommodation Grant,Childrens Services,Community,47017,Travel Grant,REDACTED,2018 Post 16 Grant A2 / 2018 Post 16 Grant T1,2358777 , 09/10/2018,27.10,879.76,879.76
600120,Post 16 Travel and Accommodation Grant,Childrens Services,Community,47016,Accomodation Grants,REDACTED,2018-19 Post 16 Grant A3,2406526 , 04/12/2018,"1,705.33","1,705.33","1,705.33"
600120,Post 16 Travel and Accommodation Grant,Childrens Services,Community,47016,Accomodation Grants,REDACTED,2018-19 Post 16 Grant A2 ,2415248 , 13/12/2018,"1,705.33","1,705.33","1,705.33"
600120,Post 16 Travel and Accommodation Grant,Childrens Services,Community,47016,Accomodation Grants,REDACTED,2018-Post 16 Grant A2,2399968 , 22/11/2018,"1,705.33","1,705.33","1,705.33"
600120,Post 16 Travel and Accommodation Grant,Childrens Services,Community,47016,Accomodation Grants,REDACTED,"2018-19 Post 16 Grant  A3, 2018-19 Post 16 Grant T1, 2018-19 Post 16 Grant T2",2407100 , 04/12/2018,852.66,"1,052.66","1,052.66"
600120,Post 16 Travel and Accommodation Grant,Childrens Services,Community,47017,Travel Grant,REDACTED,"2018-19 Post 16 Grant  A3, 2018-19 Post 16 Grant T1, 2018-19 Post 16 Grant T2",2407100 , 04/12/2018,100.00,"1,052.66","1,052.66"
600120,Post 16 Travel and Accommodation Grant,Childrens Services,Community,47017,Travel Grant,REDACTED,"2018-19 Post 16 Grant  A3, 2018-19 Post 16 Grant T1, 2018-19 Post 16 Grant T2",2407100 , 04/12/2018,100.00,"1,052.66","1,052.66"
600120,Post 16 Travel and Accommodation Grant,Childrens Services,Community,47016,Accomodation Grants,REDACTED,2018-19 Post 16 Grant A2,2415266 , 13/12/2018,"1,705.33","1,805.33","1,805.33"
600120,Post 16 Travel and Accommodation Grant,Childrens Services,Community,47017,Travel Grant,REDACTED,2018-19 Post 16 Grant T2 ,2415266 , 13/12/2018,100.00,"1,805.33","1,805.33"
600120,Post 16 Travel and Accommodation Grant,Childrens Services,Community,47016,Accomodation Grants,REDACTED,2018- Post 16 Grant A2,2358767 , 09/10/2018,852.66,897.66,897.66
600120,Post 16 Travel and Accommodation Grant,Childrens Services,Community,47017,Travel Grant,REDACTED,2018-Post 16 Grant T1 ,2358767 , 09/10/2018,45.00,897.66,897.66
600120,Post 16 Travel and Accommodation Grant,Childrens Services,Community,47016,Accomodation Grants,REDACTED,2018-Post 16 Grant A1 ,2361266 , 11/10/2018,"1,705.33","1,705.33","1,705.33"
600120,Post 16 Travel and Accommodation Grant,Childrens Services,Community,47016,Accomodation Grants,REDACTED,2018- Post 16 Grant A3,2399601 , 22/11/2018,852.66,852.66,852.66
600120,Post 16 Travel and Accommodation Grant,Childrens Services,Community,47016,Accomodation Grants,REDACTED,2018-19 Post 16 Grant A3 ,2400017 , 22/11/2018,852.66,950.91,950.91
600120,Post 16 Travel and Accommodation Grant,Childrens Services,Community,47017,Travel Grant,REDACTED,2018-19 Post 16 Grant T2 ,2400017 , 22/11/2018,98.25,950.91,950.91
600120,Post 16 Travel and Accommodation Grant,Childrens Services,Community,47016,Accomodation Grants,REDACTED,2018-19 Post 16 Grant A2 ,2400878 , 22/11/2018,"1,705.33","1,705.33","1,705.33"
600120,Post 16 Travel and Accommodation Grant,Childrens Services,Community,47016,Accomodation Grants,REDACTED,2018-19 Post 16 Grant A2 ,2402033 , 27/11/2018,"1,705.33","1,741.63","1,741.63"
600120,Post 16 Travel and Accommodation Grant,Childrens Services,Community,47017,Travel Grant,REDACTED,2018-19 Post 16 Grant T1 ,2402033 , 27/11/2018,36.30,"1,741.63","1,741.63"
600120,Post 16 Travel and Accommodation Grant,Childrens Services,Community,47016,Accomodation Grants,REDACTED,2018-19 POST 16 GRANT A3,2409932 , 04/12/2018,852.66,906.16,906.16
600120,Post 16 Travel and Accommodation Grant,Childrens Services,Community,47017,Travel Grant,REDACTED,2018-19 POST 16 GRANT TRAVEL T1,2409932 , 04/12/2018,53.50,906.16,906.16
600120,Post 16 Travel and Accommodation Grant,Childrens Services,Community,47016,Accomodation Grants,REDACTED,2018-19 Post 16 grant A2,2411520 , 06/12/2018,"1,705.33","1,705.33","1,705.33"
600120,Post 16 Travel and Accommodation Grant,Childrens Services,Community,47016,Accomodation Grants,REDACTED,,2415962 , 13/12/2018,600.00,"1,125.75","1,125.75"
600120,Post 16 Travel and Accommodation Grant,Childrens Services,Community,47017,Travel Grant,REDACTED,,2415962 , 13/12/2018,75.75,"1,125.75","1,125.75"
600120,Post 16 Travel and Accommodation Grant,Childrens Services,Community,47017,Travel Grant,REDACTED,,2415962 , 13/12/2018,450.00,"1,125.75","1,125.75"
600120,Post 16 Travel and Accommodation Grant,Childrens Services,Community,47016,Accomodation Grants,REDACTED,2018-19 POST 16 GRANT A2,2409992 , 06/12/2018,"1,705.33","1,705.33","1,705.33"
600120,Post 16 Travel and Accommodation Grant,Childrens Services,Community,47016,Accomodation Grants,REDACTED,2018 Post 16 Grant A2,2392975 , 20/11/2018,852.66,897.66,897.66
600120,Post 16 Travel and Accommodation Grant,Childrens Services,Community,47017,Travel Grant,REDACTED, 2018 Post 16 Grant T1,2392975 , 20/11/2018,45.00,897.66,897.66
600120,Post 16 Travel and Accommodation Grant,Childrens Services,Community,47016,Accomodation Grants,REDACTED,2018-19 Post 16 Grant A3,2404076 , 29/11/2018,852.66,852.66,852.66
600120,Post 16 Travel and Accommodation Grant,Childrens Services,Community,47016,Accomodation Grants,REDACTED,2018-19 Post 16 Grant A3,2406366 , 29/11/2018,852.66,952.66,952.66
600120,Post 16 Travel and Accommodation Grant,Childrens Services,Community,47017,Travel Grant,REDACTED,2018-19 Post 16 Grant T1,2406366 , 29/11/2018,100.00,952.66,952.66
600120,Post 16 Travel and Accommodation Grant,Childrens Services,Community,47016,Accomodation Grants,REDACTED,2018-19 POST 16 GRANT A3,2409951 , 04/12/2018,852.66,950.91,950.91
600120,Post 16 Travel and Accommodation Grant,Childrens Services,Community,47017,Travel Grant,REDACTED,2018-19 POST 16 GRANT T2 ,2409951 , 04/12/2018,98.25,950.91,950.91
600120,Post 16 Travel and Accommodation Grant,Childrens Services,Community,47016,Accomodation Grants,REDACTED,2018- Post 16 Grant A2 ,2357447 , 04/10/2018,852.66,852.66,852.66
600120,Post 16 Travel and Accommodation Grant,Childrens Services,Community,47016,Accomodation Grants,REDACTED,2018-Post 16 Grant A2 ,2399577 , 22/11/2018,"1,705.33","1,705.33","1,705.33"
600120,Post 16 Travel and Accommodation Grant,Childrens Services,Community,47016,Accomodation Grants,REDACTED,2018-19 Post 16 Grant A3,2407069 , 04/12/2018,852.66,852.66,852.66
600120,Post 16 Travel and Accommodation Grant,Childrens Services,Community,47016,Accomodation Grants,REDACTED,2018- Post 16 Grant A2,2366486 , 18/10/2018,852.66,852.66,852.66
600120,Post 16 Travel and Accommodation Grant,Childrens Services,Community,47016,Accomodation Grants,REDACTED,2018- Post 16 Grant A3 ,2399597 , 22/11/2018,852.66,852.66,852.66
600121,Home to School Transport,Childrens Services,Community,31603,Other Public Transport,REDACTED,,2408710 , 04/12/2018,921.52,921.52,921.52
600121,Home to School Transport,Childrens Services,Community,31812,Home to School Transport - Volunteer and Other Payments,Tresco Estate,Tresco Boating- Home to School Travel September -October Half term,2381778 , 06/11/2018,"3,164.50","3,164.50","3,164.50"
600122,Children Services Staff Costs,Childrens Services,Community,43532,Professional Fees - Other,Tozers,Tozers Inv 18847 Pro Charges,2413245 , 11/12/2018,"1,750.00","1,750.00","2,100.00"
600122,Children Services Staff Costs,Childrens Services,Community,45105,Telephone Usage,The Phone Co-Op Ltd,004069722 call internet standing orders,2261197 , 29/11/2018,-11.36,"1,112.51","1,335.01"
600122,Children Services Staff Costs,Childrens Services,Community,43532,Professional Fees - Other,REDACTED,IEB FIS Professional Services,2368158 , 23/10/2018,"1,400.00","1,400.00","1,400.00"
600122,Children Services Staff Costs,Childrens Services,Community,43532,Professional Fees - Other,REDACTED,Pro Services FIS IEB Inv 1451,2426011 , 20/12/2018,"1,600.00","1,600.00","1,600.00"
600122,Children Services Staff Costs,Childrens Services,Community,43532,Professional Fees - Other,Tozers,Tozers Inv 20064,2371176 , 23/10/2018,"2,150.00","2,150.00","2,580.00"
600122,Children Services Staff Costs,Childrens Services,Community,43532,Professional Fees - Other,REDACTED,Fees IEB-FIS 1442,2395117 , 20/11/2018,"1,300.00","1,300.00","1,300.00"
600122,Children Services Staff Costs,Childrens Services,Community,43532,Professional Fees - Other,REDACTED,IEB Consultancy Work,2395117 , 20/11/2018,"-1,300.00","1,300.00","1,300.00"
600122,Children Services Staff Costs,Childrens Services,Community,43532,Professional Fees - Other,REDACTED,IEB Consultancy Work,2395117 , 20/11/2018,"1,300.00","1,300.00","1,300.00"
600122,Children Services Staff Costs,Childrens Services,Community,43532,Professional Fees - Other,Disability Cornwall,Disability Cornwall IOS SENDiassContract,2363237 , 16/10/2018,"2,750.00","2,750.00","2,750.00"
600122,Children Services Staff Costs,Childrens Services,Community,43532,Professional Fees - Other,REDACTED,IEB - FIS,2366371 , 18/10/2018,"1,700.00","1,700.00","1,700.00"
600122,Children Services Staff Costs,Childrens Services,Community,43532,Professional Fees - Other,REDACTED,IEB FIS Pro Services,2429817 , 27/12/2018,"1,400.00","1,400.00","1,400.00"
600123,High Need SEND,Childrens Services,Community,47001,Grants & Conts to Other Bodies - Non Discretionary,The Five Islands School,IOSEG School share December 2018/Tier 3 SEND top-up Autumn 18,2410226 , 06/12/2018,"16,428.96","225,675.96","225,675.96"
600130,Children Social Care - Strategic,Childrens Social Care,Community,52001,Payments to Other Local Authorities,Cornwall Council,CIOS Contribution to LSCB Budget 2018/19.,2391406 , 29/11/2018,"4,800.00","4,800.00","4,800.00"
600130,Children Social Care - Strategic,Childrens Social Care,Community,59003,Payments to Other Operators,Richard Hand Haulage,Richard Hand move from Carn Thomas to Carn Gwarval and Carn Thomas to Town Hall,2395109 , 20/11/2018,31.50,619.62,737.24
600130,Children Social Care - Strategic,Childrens Social Care,Community,59003,Payments to Other Operators,Richard Hand Haulage,Richard Hand move from Carn Thomas to Carn Gwarval and Carn Thomas to Town Hall,2395109 , 20/11/2018,588.12,619.62,737.24
600131,Children Social Care - Commissioning,Childrens Social Care,Community,11601,Agency Costs,Sanctuary Personnel Ltd,Agency fee's for Locum Children's Social Worker,2412671 , 18/12/2018,"-1,368.75","1,368.75","1,642.50"
600131,Children Social Care - Commissioning,Childrens Social Care,Community,11601,Agency Costs,Sanctuary Personnel Ltd,Agency fees for locum Children's Social Worker,2412671 , 18/12/2018,"1,368.75","1,368.75","1,642.50"
600131,Children Social Care - Commissioning,Childrens Social Care,Community,11601,Agency Costs,Sanctuary Personnel Ltd,Agency fee's for Locum Children's Social Worker,2412671 , 18/12/2018,"1,368.75","1,368.75","1,642.50"
600131,Children Social Care - Commissioning,Childrens Social Care,Community,11601,Agency Costs,Sanctuary Personnel Ltd,Agency fee's for locum Children's Social Worker,2388317 , 13/11/2018,"1,350.50","1,350.50","1,620.60"
600131,Children Social Care - Commissioning,Childrens Social Care,Community,11601,Agency Costs,Sanctuary Personnel Ltd,Agency fee's for Locum Children's Social Worker,2363376 , 16/10/2018,821.25,821.25,985.50
600131,Children Social Care - Commissioning,Childrens Social Care,Community,11601,Agency Costs,Sanctuary Personnel Ltd,Agency fee's for Children's Social Worker,2388321 , 13/11/2018,675.25,675.25,810.30
600131,Children Social Care - Commissioning,Childrens Social Care,Community,11601,Agency Costs,Eden Brown Synergy Ltd,Agency fees for locum Children's Social Worker,2337808 , 11/10/2018,"1,285.75","1,285.75","1,542.90"
600131,Children Social Care - Commissioning,Childrens Social Care,Community,43571,Agency Fees,Eden Brown Synergy Ltd,Agency fee's for locum Children's Social Worker,2346354 , 18/10/2018,"1,198.88","1,198.88","1,438.66"
600131,Children Social Care - Commissioning,Childrens Social Care,Community,11601,Agency Costs,Sanctuary Personnel Ltd,Agency fee's for Locum Children's Social Worker,2388318 , 13/11/2018,"1,368.75","1,368.75","1,642.50"
600131,Children Social Care - Commissioning,Childrens Social Care,Community,46108,Board and Lodging,Scilly Hols Ltd,Accommodation for Locum Children's Social Worker,2408560 , 04/12/2018,685.50,685.50,685.50
600131,Children Social Care - Commissioning,Childrens Social Care,Community,46108,Board and Lodging,REDACTED,Accommodation for Locum Children's Social Care,2386830 , 08/11/2018,"1,500.00","1,500.00","1,500.00"
600131,Children Social Care - Commissioning,Childrens Social Care,Community,11601,Agency Costs,Sanctuary Personnel Ltd,Agency fees for Locum Children's Social Worker,2407856 , 18/12/2018,"1,131.50","1,131.50","1,357.80"
600131,Children Social Care - Commissioning,Childrens Social Care,Community,11601,Agency Costs,Sanctuary Personnel Ltd,Agency fee's for Children's Social Worker,2388322 , 13/11/2018,"1,423.50","1,423.50","1,708.20"
600131,Children Social Care - Commissioning,Childrens Social Care,Community,11601,Agency Costs,Sanctuary Personnel Ltd,Agency fee's for Locum Children's Social Worker,2412672 , 18/12/2018,"-1,368.75","1,368.75","1,642.50"
600131,Children Social Care - Commissioning,Childrens Social Care,Community,11601,Agency Costs,Sanctuary Personnel Ltd,Agency fee's for locum Children's Social Worker,2412672 , 18/12/2018,"1,368.75","1,368.75","1,642.50"
600131,Children Social Care - Commissioning,Childrens Social Care,Community,11601,Agency Costs,Sanctuary Personnel Ltd,Agency fee's for Locum Children's Social Worker,2412672 , 18/12/2018,"1,368.75","1,368.75","1,642.50"
600131,Children Social Care - Commissioning,Childrens Social Care,Community,11601,Agency Costs,Sanctuary Personnel Ltd,Agency fees for locum Children's Social Worker,2358196 , 09/10/2018,"1,350.50","1,350.50","1,620.60"
600131,Children Social Care - Commissioning,Childrens Social Care,Community,46108,Board and Lodging,Scilly Hols Ltd,Accommodation for locum Children's Social Worker,2358715 , 09/10/2018,"1,800.00","1,800.00","1,800.00"
600131,Children Social Care - Commissioning,Childrens Social Care,Community,31205,Petrol Purchases,Sibleys Fuel & Marine Services,Fuel for CSC car,2385748 , 27/11/2018,50.63,"2,168.09","2,479.58"
600131,Children Social Care - Commissioning,Childrens Social Care,Community,31102,Vehicle Repair and Maintenance,Sibleys Fuel & Marine Services,"Car battery for Renault Megane, Social Care Pool Car.",2382462 , 22/11/2018,81.50,"3,402.50","3,811.60"
600131,Children Social Care - Commissioning,Childrens Social Care,Community,11601,Agency Costs,Sanctuary Personnel Ltd,Agency fees for Locum Children's Social Worker,2407855 , 18/12/2018,"1,350.50","1,350.50","1,620.60"
600133,CSC Short Break Care,Childrens Social Care,Community,57014,Client Related Personal Needs - Private Contractors,REDACTED,Reimbursement for Short Breaks Care Budget.,2371247 , 01/11/2018,850.00,850.00,850.00
600133,CSC Short Break Care,Childrens Social Care,Community,57014,Client Related Personal Needs - Private Contractors,REDACTED,Reimbursement of Short Breaks Care Budget.,2391718 , 20/11/2018,828.00,828.00,828.00
600133,CSC Short Break Care,Childrens Social Care,Community,57014,Client Related Personal Needs - Private Contractors,REDACTED,Reimbursement of Short Breaks Care Budget,2371278 , 01/11/2018,542.00,542.00,542.00
600140,Public Health,Public Health,Community,53003,Public Health Contracts - GP's,St Mary's Health Centre,Enhanced Sexual Health Services,2412541 , 11/12/2018,"6,900.00","6,900.00","6,900.00"
600141,Community Safety,Community Safety,Community,73640,Supply Expenditure: School (Non - Teaching),The Five Islands School,Funds for School Crossing Patrol from CSP.,2410568 , 06/12/2018,"5,000.00","5,000.00","5,000.00"
600210,Adult Education,Learning and  Library,Strategic Development and Finance,43576,Purchased Training (Not for Staff),REDACTED,2 x Menopause Self Care Workshops on 18th & 19th Sept,2407967 , 04/12/2018,600.00,600.00,600.00
600210,Adult Education,Learning and  Library,Strategic Development and Finance,12301,Training,Ashburton Cookery School,Training course,2410511 , 11/12/2018,"1,289.00","1,289.00","1,289.00"
600210,Adult Education,Learning and  Library,Strategic Development and Finance,45105,Telephone Usage,The Phone Co-Op Ltd,004069722 call internet standing orders,2261197 , 29/11/2018,1.20,"1,112.51","1,335.01"
600210,Adult Education,Learning and  Library,Strategic Development and Finance,45105,Telephone Usage,The Phone Co-Op Ltd,004069722 call internet standing orders,2261197 , 29/11/2018,1.20,"1,112.51","1,335.01"
600210,Adult Education,Learning and  Library,Strategic Development and Finance,45105,Telephone Usage,The Phone Co-Op Ltd,004069722 call internet standing orders,2261197 , 29/11/2018,1.20,"1,112.51","1,335.01"
600210,Adult Education,Learning and  Library,Strategic Development and Finance,45105,Telephone Usage,The Phone Co-Op Ltd,004069722 call internet standing orders,2261197 , 29/11/2018,4.90,"1,112.51","1,335.01"
600210,Adult Education,Learning and  Library,Strategic Development and Finance,45105,Telephone Usage,The Phone Co-Op Ltd,004069722 call internet standing orders,2261197 , 29/11/2018,146.17,"1,112.51","1,335.01"
600210,Adult Education,Learning and  Library,Strategic Development and Finance,12301,Training,Essential Training (SW) Ltd,"Moving and Handling Train the Trainer course plus half day mandatory training for Park House staff on 17th, 18th and 19th Sept",2368217 , 23/10/2018,790.00,790.00,948.00
600210,Adult Education,Learning and  Library,Strategic Development and Finance,43576,Purchased Training (Not for Staff),In Safe Hands Health & Safety Training & Consultancy Ltd,Delivery of 1 day EFAW and 2 day FAW requalification,2392074 , 15/11/2018,192.50,895.00,"1,074.00"
600210,Adult Education,Learning and  Library,Strategic Development and Finance,12301,Training,Cornwall Council,2x days HR training for CIOS line managers delivered by Cornwall Council HR Dept,2371043 , 01/11/2018,847.00,847.00,"1,016.40"
600210,Adult Education,Learning and  Library,Strategic Development and Finance,12301,Training,Institute Of Swimming Ltd,ASA Level 1 Swimming Assistant course x 3,2363147 , 16/10/2018,"1,125.00","1,125.00","1,125.00"
600210,Adult Education,Learning and  Library,Strategic Development and Finance,41113,Curriculum Equipment,One Off Payments,Course materials essential oils,2357454 , 09/10/2018,16.64,"1,259.40","1,511.27"
600210,Adult Education,Learning and  Library,Strategic Development and Finance,41113,Curriculum Equipment,One Off Payments,Course materials hygiene roll,2357454 , 09/10/2018,5.42,"1,259.40","1,511.27"
600210,Adult Education,Learning and  Library,Strategic Development and Finance,41113,Curriculum Equipment,One Off Payments,Course materials essential oils,2357454 , 09/10/2018,12.46,"1,259.40","1,511.27"
600210,Adult Education,Learning and  Library,Strategic Development and Finance,41113,Curriculum Equipment,One Off Payments,Course materials bowl x 2,2357454 , 09/10/2018,4.98,"1,259.40","1,511.27"
600210,Adult Education,Learning and  Library,Strategic Development and Finance,43576,Purchased Training (Not for Staff),Omni,EFAAW Course on Monday 12th November,2392103 , 15/11/2018,425.00,425.00,510.00
600210,Adult Education,Learning and  Library,Strategic Development and Finance,12301,Training,REDACTED,Delivery of 2 days Excel training for staff,2410020 , 04/12/2018,"1,170.00","1,170.00","1,170.00"
600211,Library Services,Learning and  Library,Strategic Development and Finance,45105,Telephone Usage,The Phone Co-Op Ltd,004069722 call internet standing orders,2261197 , 29/11/2018,1.20,"1,112.51","1,335.01"
600211,Library Services,Learning and  Library,Strategic Development and Finance,45105,Telephone Usage,The Phone Co-Op Ltd,004069722 call internet standing orders,2261197 , 29/11/2018,263.39,"1,112.51","1,335.01"
600211,Library Services,Learning and  Library,Strategic Development and Finance,41107,Equipment Special Purchases,One Off Payments,Acrylic book stands,2357454 , 09/10/2018,11.48,"1,259.40","1,511.27"
600211,Library Services,Learning and  Library,Strategic Development and Finance,49002,Miscellaneous Expenditure,Sibleys Fuel & Marine Services,Normandy Pool Oil,2385748 , 27/11/2018,814.26,"2,168.09","2,479.58"
600212,Customer Hub,Learning and  Library,Strategic Development and Finance,45105,Telephone Usage,The Phone Co-Op Ltd,004069722 call internet standing orders,2261197 , 29/11/2018,0.04,"1,112.51","1,335.01"
600212,Customer Hub,Learning and  Library,Strategic Development and Finance,45105,Telephone Usage,The Phone Co-Op Ltd,004069722 call internet standing orders,2261197 , 29/11/2018,22.00,"1,112.51","1,335.01"
600212,Customer Hub,Learning and  Library,Strategic Development and Finance,45215,Internet/Broadband charges,The Phone Co-Op Ltd,004069722 call internet standing orders,2261197 , 29/11/2018,89.00,"1,112.51","1,335.01"
600212,Customer Hub,Learning and  Library,Strategic Development and Finance,45301,Postage/Franking Charges,Francotyp-Postalia Limited,19517179,2425559 , 21/12/2018,12.00,512.00,514.40
600212,Customer Hub,Learning and  Library,Strategic Development and Finance,45301,Postage/Franking Charges,Francotyp-Postalia Limited,19517179,2425559 , 21/12/2018,500.00,512.00,514.40
600212,Customer Hub,Learning and  Library,Strategic Development and Finance,41102,Equipment Rental,Francotyp-Postalia Limited,112672 Line 80,2410636 , 06/12/2018,865.93,865.93,"1,039.12"
600212,Customer Hub,Learning and  Library,Strategic Development and Finance,45301,Postage/Franking Charges,Francotyp-Postalia Limited,inv 19624825  line 312,2410661 , 06/12/2018,500.00,500.00,500.00
600212,Customer Hub,Learning and  Library,Strategic Development and Finance,45301,Postage/Franking Charges,Francotyp-Postalia Limited,Qi3 Franking Machine 1/11-31/1,2391939 , 16/11/2018,865.93,865.93,"1,039.12"
600212,Customer Hub,Learning and  Library,Strategic Development and Finance,45301,Postage/Franking Charges,Francotyp-Postalia Limited,Line 341,2425964 , 21/12/2018,500.00,500.00,500.00
600212,Customer Hub,Learning and  Library,Strategic Development and Finance,41107,Equipment Special Purchases,One Off Payments,Safe,2357454 , 09/10/2018,31.78,"1,259.40","1,511.27"
600212,Customer Hub,Learning and  Library,Strategic Development and Finance,22003,Gas,Sibleys Fuel & Marine Services,Gas bottles for Carn Gwaval,2382462 , 22/11/2018,-990.29,"3,402.50","3,811.60"
600212,Customer Hub,Learning and  Library,Strategic Development and Finance,22003,Gas,Sibleys Fuel & Marine Services,Gas bottles for Carn Gwaval,2382462 , 22/11/2018,408.00,"3,402.50","3,811.60"
600212,Customer Hub,Learning and  Library,Strategic Development and Finance,22003,Gas,Sibleys Fuel & Marine Services,Gas bottles for Carn Gwaval,2382462 , 22/11/2018,990.29,"3,402.50","3,811.60"
600212,Customer Hub,Learning and  Library,Strategic Development and Finance,45301,Postage/Franking Charges,Francotyp-Postalia Limited,19482459,2425560 , 21/12/2018,12.00,512.00,514.40
600212,Customer Hub,Learning and  Library,Strategic Development and Finance,45301,Postage/Franking Charges,Francotyp-Postalia Limited,19482459,2425560 , 21/12/2018,500.00,512.00,514.40
600220,IFCA,Inshore Fisheries and Conservation Authoirutues,Strategic Development and Finance,43532,Professional Fees - Other,University Of Plymouth,Work towards the NE Crawfish fund for IFCA,2391268 , 29/11/2018,"2,500.00","2,500.00","3,000.00"
600220,IFCA,Inshore Fisheries and Conservation Authoirutues,Strategic Development and Finance,41104,Equipment & Plant - Direct Purchase,South'Ard Engineering,Purchase of Items for IFCA ONLY April 2018 to March 2019 inc.,2410768 , 06/12/2018,890.49,890.49,"1,068.58"
600220,IFCA,Inshore Fisheries and Conservation Authoirutues,Strategic Development and Finance,31501,Vehicle & Plant Contract Hire,St Martin's Diving Services,Charter of Morvoren for Surveys in October 2018,2415758 , 13/12/2018,"2,500.00","2,500.00","2,500.00"
600220,IFCA,Inshore Fisheries and Conservation Authoirutues,Strategic Development and Finance,41104,Equipment & Plant - Direct Purchase,South'Ard Engineering,Purchase of Items for IFCA ONLY April 2018 to March 2019 inc.,2410777 , 06/12/2018,"1,789.97","1,789.97","2,147.96"
600220,IFCA,Inshore Fisheries and Conservation Authoirutues,Strategic Development and Finance,89202,Legal Fees & Expenses,Feusik Assessment Services Ltd,For investigations for ongoing Legal Case's,2409991 , 04/12/2018,"2,125.18","2,125.18","2,550.22"
600220,IFCA,Inshore Fisheries and Conservation Authoirutues,Strategic Development and Finance,89202,Legal Fees & Expenses,Feusik Assessment Services Ltd,For investigations for ongoing Legal Case's,2410660 , 06/12/2018,"1,653.75","1,653.75","1,984.50"
600220,IFCA,Inshore Fisheries and Conservation Authoirutues,Strategic Development and Finance,89202,Legal Fees & Expenses,Feusik Assessment Services Ltd,For investigations for ongoing Legal Case's,2410662 , 06/12/2018,945.00,945.00,"1,134.00"
600220,IFCA,Inshore Fisheries and Conservation Authoirutues,Strategic Development and Finance,31205,Petrol Purchases,Sibleys Fuel & Marine Services,Fuel for the IFCA boat for 2018/19,2382462 , 22/11/2018,7.51,"3,402.50","3,811.60"
600220,IFCA,Inshore Fisheries and Conservation Authoirutues,Strategic Development and Finance,89202,Legal Fees & Expenses,Feusik Assessment Services Ltd,For investigations for ongoing Legal Case's,2409989 , 04/12/2018,570.00,570.00,684.00
600220,IFCA,Inshore Fisheries and Conservation Authoirutues,Strategic Development and Finance,89978,Marine Management Organisation,MSDS Marine Ltd,Multibeam Data Collection,2416855 , 13/12/2018,"3,600.00","3,600.00","4,320.00"
600230,Capital Development & Procurement Team,Capital Development and Procurement,Strategic Development and Finance,43532,Professional Fees - Other,Southern Horizons (UK) Ltd,Summative Assessment of the IOS Technical Assistance Team Project,2404540 , 29/11/2018,860.00,860.00,"1,032.00"
600230,Capital Development & Procurement Team,Capital Development and Procurement,Strategic Development and Finance,49002,Miscellaneous Expenditure,Sibleys Fuel & Marine Services,Fuel for the Month of March 2018 for Repair & Maintenance,2382462 , 22/11/2018,116.90,"3,402.50","3,811.60"
600230,Capital Development & Procurement Team,Capital Development and Procurement,Strategic Development and Finance,49002,Miscellaneous Expenditure,Sibleys Fuel & Marine Services,Fuel for the Month of March 2018 for Repair & Maintenance,2382462 , 22/11/2018,107.61,"3,402.50","3,811.60"
600230,Capital Development & Procurement Team,Capital Development and Procurement,Strategic Development and Finance,12401,Recruitment Advertising - Job,Guardian News & Media Ltd,Job Posting X 2,2406801 , 04/12/2018,"1,700.00","1,700.00","2,040.00"
600240,Social Housing,Housing Rented Property and Homelessness,Strategic Development and Finance,73902,Bathroom Works  [CHL],Natural Generation Ltd,installation of new shower,2389188 , 15/11/2018,700.00,700.00,840.00
600240,Social Housing,Housing Rented Property and Homelessness,Strategic Development and Finance,43506,Professional Fees - Legal,Cornwall Council,RTB Legal Costs with Cornwall Council,2332157 , 02/10/2018,475.00,475.00,570.00
600240,Social Housing,Housing Rented Property and Homelessness,Strategic Development and Finance,21238,R&M - Asbestos Removal,Allium Environmental Ltd,Removal of asbestos,2393146 , 20/11/2018,"3,944.00","3,944.00","4,732.80"
600240,Social Housing,Housing Rented Property and Homelessness,Strategic Development and Finance,22501,Rent,Sibleys Island Homes,LINE 157,2410833 , 06/12/2018,550.00,550.00,550.00
600240,Social Housing,Housing Rented Property and Homelessness,Strategic Development and Finance,21116,R&M - Other - Planned,Evans Electricals,Replacement Heaters,2415904 , 13/12/2018,88.00,"1,004.20",986.60
600240,Social Housing,Housing Rented Property and Homelessness,Strategic Development and Finance,21116,R&M - Other - Planned,Evans Electricals,Replacement Heaters,2415904 , 13/12/2018,916.20,"1,004.20",986.60
600240,Social Housing,Housing Rented Property and Homelessness,Strategic Development and Finance,21116,R&M - Other - Planned,Evans Electricals,MATERIALS,2361106 , 11/10/2018,688.28,773.68,760.48
600240,Social Housing,Housing Rented Property and Homelessness,Strategic Development and Finance,21116,R&M - Other - Planned,Evans Electricals,MATERIALS,2361106 , 11/10/2018,-388.28,773.68,760.48
600240,Social Housing,Housing Rented Property and Homelessness,Strategic Development and Finance,21116,R&M - Other - Planned,Evans Electricals,Replacement Heaters,2361106 , 11/10/2018,19.40,773.68,760.48
600240,Social Housing,Housing Rented Property and Homelessness,Strategic Development and Finance,21116,R&M - Other - Planned,Evans Electricals,MATERIALS,2361106 , 11/10/2018,388.28,773.68,760.48
600240,Social Housing,Housing Rented Property and Homelessness,Strategic Development and Finance,21116,R&M - Other - Planned,Evans Electricals,LABOUR,2361106 , 11/10/2018,66.00,773.68,760.48
600240,Social Housing,Housing Rented Property and Homelessness,Strategic Development and Finance,21201,R&M - Buildings - Reactive,Wright Construction,Bargeboards and disposal of spoil,2375418 , 25/10/2018,350.00,"1,400.00","1,680.00"
600240,Social Housing,Housing Rented Property and Homelessness,Strategic Development and Finance,21201,R&M - Buildings - Reactive,Wright Construction,Bargeboards and disposal of spoil,2375418 , 25/10/2018,350.00,"1,400.00","1,680.00"
600240,Social Housing,Housing Rented Property and Homelessness,Strategic Development and Finance,21201,R&M - Buildings - Reactive,Wright Construction,Bargeboards and disposal of spoil,2375418 , 25/10/2018,350.00,"1,400.00","1,680.00"
600240,Social Housing,Housing Rented Property and Homelessness,Strategic Development and Finance,21201,R&M - Buildings - Reactive,Wright Construction,Bargeboards and disposal of spoil,2375418 , 25/10/2018,350.00,"1,400.00","1,680.00"
600240,Social Housing,Housing Rented Property and Homelessness,Strategic Development and Finance,21201,R&M - Buildings - Reactive,Wright Construction,Replacement of Soffits and Guttering,2376708 , 30/10/2018,"2,400.00","5,500.00","6,600.00"
600240,Social Housing,Housing Rented Property and Homelessness,Strategic Development and Finance,21201,R&M - Buildings - Reactive,Wright Construction,Replacement of Soffits and Guttering,2376708 , 30/10/2018,"2,400.00","5,500.00","6,600.00"
600240,Social Housing,Housing Rented Property and Homelessness,Strategic Development and Finance,21204,R&M - External Decoration - Reactive,Wright Construction,Removal of Spoil and Asbestos.,2376708 , 30/10/2018,350.00,"5,500.00","6,600.00"
600240,Social Housing,Housing Rented Property and Homelessness,Strategic Development and Finance,21204,R&M - External Decoration - Reactive,Wright Construction,Removal of Spoil and Asbestos.,2376708 , 30/10/2018,350.00,"5,500.00","6,600.00"
600240,Social Housing,Housing Rented Property and Homelessness,Strategic Development and Finance,22501,Rent,Sibleys Island Homes,line 94,2410847 , 06/12/2018,550.00,550.00,550.00
600240,Social Housing,Housing Rented Property and Homelessness,Strategic Development and Finance,22501,Rent,Sibleys Island Homes,line 27,2410850 , 06/12/2018,550.00,550.00,550.00
600240,Social Housing,Housing Rented Property and Homelessness,Strategic Development and Finance,21201,R&M - Buildings - Reactive,Wright Construction,Roof Maintenance: Replacement Guttering,2329752 , 02/10/2018,"1,175.00","4,700.00","5,640.00"
600240,Social Housing,Housing Rented Property and Homelessness,Strategic Development and Finance,21201,R&M - Buildings - Reactive,Wright Construction,Roof Maintenance: Replacement Guttering,2329752 , 02/10/2018,"1,175.00","4,700.00","5,640.00"
600240,Social Housing,Housing Rented Property and Homelessness,Strategic Development and Finance,21201,R&M - Buildings - Reactive,Wright Construction,Roof Maintenance: Replacement Guttering,2329752 , 02/10/2018,"1,175.00","4,700.00","5,640.00"
600240,Social Housing,Housing Rented Property and Homelessness,Strategic Development and Finance,21201,R&M - Buildings - Reactive,Wright Construction,Roof Maintenance: Replacement Guttering,2329752 , 02/10/2018,"1,175.00","4,700.00","5,640.00"
600240,Social Housing,Housing Rented Property and Homelessness,Strategic Development and Finance,22501,Rent,REDACTED,REDACTED,2377011 , 30/10/2018,700.00,700.00,700.00
600240,Social Housing,Housing Rented Property and Homelessness,Strategic Development and Finance,21102,R&M - Painting - Planned,Dulux Decorator Centre,Stock of paint for housing works,2391931 , 06/12/2018,496.63,496.63,595.96
600240,Social Housing,Housing Rented Property and Homelessness,Strategic Development and Finance,41308,Construction Materials,Jewson Ltd,"Fire door and door furniture, 
Fire board and insulation, 
Fire proof sealer, 
Batten, 
Fence panels",2347269 , 11/10/2018,"1,209.43","1,209.43","1,451.32"
600240,Social Housing,Housing Rented Property and Homelessness,Strategic Development and Finance,21136,R&M - Health & Safety,Natural Generation Ltd,Scaffolding Hire to complete soffits and guttering works,2376691 , 13/11/2018,480.00,960.00,"1,152.00"
600240,Social Housing,Housing Rented Property and Homelessness,Strategic Development and Finance,21136,R&M - Health & Safety,Natural Generation Ltd,Scaffolding Hire to complete soffits and guttering works,2376691 , 13/11/2018,480.00,960.00,"1,152.00"
600240,Social Housing,Housing Rented Property and Homelessness,Strategic Development and Finance,21201,R&M - Buildings - Reactive,Wright Construction,Fixing Hole in Chimney,2356162 , 04/10/2018,"3,450.00","3,450.00","4,140.00"
600240,Social Housing,Housing Rented Property and Homelessness,Strategic Development and Finance,21201,R&M - Buildings - Reactive,Longrock Window Company Ltd,Replacement UPVC windows and doors,2379182 , 06/11/2018,904.17,"1,291.67","1,550.00"
600240,Social Housing,Housing Rented Property and Homelessness,Strategic Development and Finance,21201,R&M - Buildings - Reactive,Longrock Window Company Ltd,Replacement UPVC windows and doors,2379182 , 06/11/2018,387.50,"1,291.67","1,550.00"
600240,Social Housing,Housing Rented Property and Homelessness,Strategic Development and Finance,22501,Rent,Sibleys Island Homes,line 292,2410844 , 06/12/2018,550.00,550.00,550.00
600240,Social Housing,Housing Rented Property and Homelessness,Strategic Development and Finance,73942,Repairs,Jewson Ltd,Materials,2410184 , 20/12/2018,"1,048.82","1,048.82","1,258.56"
600240,Social Housing,Housing Rented Property and Homelessness,Strategic Development and Finance,22501,Rent,Sibleys Island Homes,line 237,2410839 , 06/12/2018,550.00,550.00,550.00
600240,Social Housing,Housing Rented Property and Homelessness,Strategic Development and Finance,22001,Heating Oil,Sibleys Fuel & Marine Services,Sibleys discounted gas oil,2382462 , 22/11/2018,990.29,"3,402.50","3,811.60"
600242,Housing Staffing,Housing Rented Property and Homelessness,Strategic Development and Finance,22501,Rent,REDACTED,REDACTED,2393094 , 20/11/2018,700.00,700.00,700.00
600242,Housing Staffing,Housing Rented Property and Homelessness,Strategic Development and Finance,22501,Rent,REDACTED,REDACTED,2415620 , 13/12/2018,700.00,700.00,700.00
600260,Voucher Scheme,Strategic Development Management,Democrative and Corporate Governance,47013,Grants & Conts to Other Bodies - Discretionary,Seven Stones Inn,Project 17: Claim 2 grant payment,2352252 , 02/10/2018,"23,244.54","23,244.54","23,244.54"
600260,Voucher Scheme,Strategic Development Management,Democrative and Corporate Governance,47013,Grants & Conts to Other Bodies - Discretionary,Tresco Estate,,2412559 , 11/12/2018,"44,864.26","44,864.26","44,864.26"
600260,Voucher Scheme,Strategic Development Management,Democrative and Corporate Governance,47013,Grants & Conts to Other Bodies - Discretionary,Islands & Tourism Business Partnership Ltd,PROJECT 83: CLAIM 5 GRANT PAYMENT,2420790 , 18/12/2018,"15,091.38","15,091.38","15,091.38"
600260,Voucher Scheme,Strategic Development Management,Democrative and Corporate Governance,47013,Grants & Conts to Other Bodies - Discretionary,Community Venture (Smart Islands Project),Project 94: Claim 5 grant payment,2415280 , 13/12/2018,"43,531.82","43,531.82","43,531.82"
600260,Voucher Scheme,Strategic Development Management,Democrative and Corporate Governance,47013,Grants & Conts to Other Bodies - Discretionary,REDACTED,Project 170: Claim 2 grant payment,2370581 , 23/10/2018,"6,380.49","6,380.49","6,380.49"
600260,Voucher Scheme,Strategic Development Management,Democrative and Corporate Governance,47013,Grants & Conts to Other Bodies - Discretionary,Islands & Tourism Business Partnership Ltd,Project 83: Claim 3 grant payment,2358173 , 09/10/2018,"6,517.10","6,517.10","6,517.10"
600260,Voucher Scheme,Strategic Development Management,Democrative and Corporate Governance,49002,Miscellaneous Expenditure,Southern Horizons (UK) Ltd,Summative evaluation for the IOS Voucher Scheme project.,2365572 , 18/10/2018,"6,174.00","6,174.00","7,408.80"
600260,Voucher Scheme,Strategic Development Management,Democrative and Corporate Governance,47013,Grants & Conts to Other Bodies - Discretionary,Shearwater Construction Ltd,Project 187: Claim 1 grant payment,2379726 , 01/11/2018,"9,093.57","9,093.57","9,093.57"
600260,Voucher Scheme,Strategic Development Management,Democrative and Corporate Governance,47013,Grants & Conts to Other Bodies - Discretionary,Twisted Bobbins,Project 108: Claim 1 grant payment,2388944 , 13/11/2018,"2,403.80","2,403.80","2,403.80"
600260,Voucher Scheme,Strategic Development Management,Democrative and Corporate Governance,47013,Grants & Conts to Other Bodies - Discretionary,Tresco Estate,Project 143: Claim 4 grant payment,2358691 , 09/10/2018,"1,027.16","1,027.16","1,027.16"
600260,Voucher Scheme,Strategic Development Management,Democrative and Corporate Governance,47013,Grants & Conts to Other Bodies - Discretionary,REDACTED,Project 158: Claim 2 grant payment,2382307 , 06/11/2018,"2,363.82","2,363.82","2,363.82"
600260,Voucher Scheme,Strategic Development Management,Democrative and Corporate Governance,47013,Grants & Conts to Other Bodies - Discretionary,Scilly App Company Ltd,Project 60b: Claim 4 grant payment,2371165 , 23/10/2018,"4,071.25","4,071.25","4,071.25"
600260,Voucher Scheme,Strategic Development Management,Democrative and Corporate Governance,47013,Grants & Conts to Other Bodies - Discretionary,Mulciber,Project 88: Claim 2 grant payment,2387517 , 13/11/2018,"49,495.00","49,495.00","49,495.00"
600260,Voucher Scheme,Strategic Development Management,Democrative and Corporate Governance,47013,Grants & Conts to Other Bodies - Discretionary,REDACTED,PROJECT 120: CLAIM 3 GRANT PAYMENT,2413194 , 11/12/2018,"10,304.03","10,304.03","10,304.03"
600260,Voucher Scheme,Strategic Development Management,Democrative and Corporate Governance,47013,Grants & Conts to Other Bodies - Discretionary,The Sailing Centre Ios Ltd,Project 51c: Claim 3 grant payment,2420083 , 18/12/2018,"5,881.89","5,881.89","5,881.89"
600260,Voucher Scheme,Strategic Development Management,Democrative and Corporate Governance,47013,Grants & Conts to Other Bodies - Discretionary,Islands & Tourism Business Partnership Ltd,Project 83: Claim 4 grant payment,2405470 , 29/11/2018,"46,182.03","46,182.03","46,182.03"
600260,Voucher Scheme,Strategic Development Management,Democrative and Corporate Governance,47013,Grants & Conts to Other Bodies - Discretionary,Seven Stones Inn,Project 17: Claim 3 grant PAYMENT,2415255 , 13/12/2018,"6,984.11","6,984.11","6,984.11"
600260,Voucher Scheme,Strategic Development Management,Democrative and Corporate Governance,47013,Grants & Conts to Other Bodies - Discretionary,REDACTED,Project 188: Claim 1 grant payment,2410593 , 06/12/2018,"1,953.36","1,953.36","1,953.36"
600260,Voucher Scheme,Strategic Development Management,Democrative and Corporate Governance,47013,Grants & Conts to Other Bodies - Discretionary,The Sailing Centre Ios Ltd,Project 51c: Claim 2 grant,2388406 , 13/11/2018,659.86,659.86,659.86
600260,Voucher Scheme,Strategic Development Management,Democrative and Corporate Governance,49002,Miscellaneous Expenditure,Southern Horizons (UK) Ltd,Summative evaluation for the IOS Voucher Scheme project.,2411580 , 11/12/2018,"8,232.00","8,232.00","9,878.40"
600303,Corporate Management,Democrative and Corporate Governance,Democrative and Corporate Governance,49002,Miscellaneous Expenditure,Gateway Assure Ltd,"Internal Audit
Q1 2018/19  One quarter of annual fee",2350493 , 04/10/2018,"4,125.00","4,125.00","4,950.00"
600303,Corporate Management,Democrative and Corporate Governance,Democrative and Corporate Governance,49002,Miscellaneous Expenditure,Gateway Assure Ltd,Internal Audit Q2 2018/19 One quarter of annual fee,2350493 , 04/10/2018,"4,125.00","4,125.00","4,950.00"
600303,Corporate Management,Democrative and Corporate Governance,Democrative and Corporate Governance,49002,Miscellaneous Expenditure,Gateway Assure Ltd,Internal Audit Q2 2018/19 One quarter of annual fee,2350493 , 04/10/2018,"-4,950.00","4,125.00","4,950.00"
600303,Corporate Management,Democrative and Corporate Governance,Democrative and Corporate Governance,49002,Miscellaneous Expenditure,Gateway Assure Ltd,"Internal Audit
Q1 2018/19  One quarter of annual fee",2350493 , 04/10/2018,"-4,125.00","4,125.00","4,950.00"
600303,Corporate Management,Democrative and Corporate Governance,Democrative and Corporate Governance,49002,Miscellaneous Expenditure,Gateway Assure Ltd,Internal Audit Q2 2018/19 One quarter of annual fee,2350493 , 04/10/2018,"4,950.00","4,125.00","4,950.00"
600303,Corporate Management,Democrative and Corporate Governance,Democrative and Corporate Governance,49002,Miscellaneous Expenditure,Gateway Assure Ltd,"Internal Audit
Q1 2018/19  One quarter of annual fee",2410159 , 20/12/2018,"4,125.00","4,125.00","4,950.00"
600303,Corporate Management,Democrative and Corporate Governance,Democrative and Corporate Governance,49002,Miscellaneous Expenditure,Gateway Assure Ltd,Completion of internal audit plan for 2018/19 � quarter three feeOne Quarter of annual fee as agreed,2425816 , 20/12/2018,"4,125.00","4,125.00","4,950.00"
600303,Corporate Management,Democrative and Corporate Governance,Democrative and Corporate Governance,43548,External Audit Charges,Grant Thornton Ltd,External Audit audit fees (1718 Teacher's Pension return; 1718 Housing Benefit Certification; 1819 Q1 & Q2 fees),2425791 , 20/12/2018,"3,200.00","3,200.00","3,840.00"
600303,Corporate Management,Democrative and Corporate Governance,Democrative and Corporate Governance,31602,Air Travel,RBS Commercial Card Division,13-09-2018|6459|TRAVEL TEAM|ISLES OF SCILLY SS CO|TR21 0LJ|4411|FLIGHTS,2374925 , 25/10/2018,906.30,"13,882.20","14,281.01"
600303,Corporate Management,Democrative and Corporate Governance,Democrative and Corporate Governance,46103,Hotel Expenses,South West Councils,Accommodation in Exeter for SW Challenge ,2353001 , 02/10/2018,"1,019.88","1,019.88","1,223.86"
600303,Corporate Management,Democrative and Corporate Governance,Democrative and Corporate Governance,43548,External Audit Charges,Grant Thornton Ltd,External Audit audit fees (1718 Teacher's Pension return; 1718 Housing Benefit Certification; 1819 Q1 & Q2 fees),2425793 , 20/12/2018,"4,520.00","4,520.00","5,424.00"
600303,Corporate Management,Democrative and Corporate Governance,Democrative and Corporate Governance,43548,External Audit Charges,Grant Thornton Ltd,External Audit audit fees (1718 Teacher's Pension return; 1718 Housing Benefit Certification; 1819 Q1 & Q2 fees),2425795 , 20/12/2018,"13,564.00","13,564.00","16,276.80"
600305,Members,Democrative and Corporate Governance,Democrative and Corporate Governance,89408,Other Costs,RBS Commercial Card Division,18-10-2018|7385|TN11 8AG|5734|TOMMY FOR ARMISTICE CELEBRATION,2399685 , 23/11/2018,681.70,"16,844.10","17,467.41"
600305,Members,Democrative and Corporate Governance,Democrative and Corporate Governance,43002,Stationery and Consumables,One Off Payments,4 x iPad cases,2357454 , 09/10/2018,79.97,"1,259.40","1,511.27"
600305,Members,Democrative and Corporate Governance,Democrative and Corporate Governance,43002,Stationery and Consumables,One Off Payments,4 x iPad for members,2357454 , 09/10/2018,"1,096.67","1,259.40","1,511.27"
600306,Elections,Democrative and Corporate Governance,Democrative and Corporate Governance,49002,Miscellaneous Expenditure,Idox Software Ltd,LALPAC (IDOX) licensing system maintenance period Nov 2018 to March 2019.,2415993 , 13/12/2018,"3,356.07","3,356.07","4,027.28"
600306,Elections,Democrative and Corporate Governance,Democrative and Corporate Governance,49002,Miscellaneous Expenditure,Modern Mindset Ltd,Modern Gov support fee for the year 18/19,2354073 , 02/10/2018,"3,505.00","3,505.00","4,206.00"
600306,Elections,Democrative and Corporate Governance,Democrative and Corporate Governance,49002,Miscellaneous Expenditure,Digital Navigators,Audio-Visual upgrade to Wesleyan Chapel (Council Chamber),2359003 , 16/10/2018,"2,072.88","2,072.88","2,072.88"
600307,Healthwatch,Democrative and Corporate Governance,Democrative and Corporate Governance,45105,Telephone Usage,The Phone Co-Op Ltd,004069722 call internet standing orders,2261197 , 29/11/2018,-0.36,"1,112.51","1,335.01"
600307,Healthwatch,Democrative and Corporate Governance,Democrative and Corporate Governance,45105,Telephone Usage,The Phone Co-Op Ltd,004069722 call internet standing orders,2261197 , 29/11/2018,-26.71,"1,112.51","1,335.01"
600307,Healthwatch,Democrative and Corporate Governance,Democrative and Corporate Governance,45105,Telephone Usage,The Phone Co-Op Ltd,004069722 call internet standing orders,2261197 , 29/11/2018,-10.42,"1,112.51","1,335.01"
600307,Healthwatch,Democrative and Corporate Governance,Democrative and Corporate Governance,45105,Telephone Usage,The Phone Co-Op Ltd,004069722 call internet standing orders,2261197 , 29/11/2018,1.20,"1,112.51","1,335.01"
600307,Healthwatch,Democrative and Corporate Governance,Democrative and Corporate Governance,45105,Telephone Usage,The Phone Co-Op Ltd,004069722 call internet standing orders,2261197 , 29/11/2018,4.90,"1,112.51","1,335.01"
600307,Healthwatch,Democrative and Corporate Governance,Democrative and Corporate Governance,45105,Telephone Usage,The Phone Co-Op Ltd,004069722 call internet standing orders,2261197 , 29/11/2018,0.08,"1,112.51","1,335.01"
600307,Healthwatch,Democrative and Corporate Governance,Democrative and Corporate Governance,45105,Telephone Usage,The Phone Co-Op Ltd,004069722 call internet standing orders,2261197 , 29/11/2018,68.59,"1,112.51","1,335.01"
600307,Healthwatch,Democrative and Corporate Governance,Democrative and Corporate Governance,45215,Internet/Broadband charges,The Phone Co-Op Ltd,004069722 call internet standing orders,2261197 , 29/11/2018,44.13,"1,112.51","1,335.01"
600307,Healthwatch,Democrative and Corporate Governance,Democrative and Corporate Governance,45215,Internet/Broadband charges,The Phone Co-Op Ltd,004069722 call internet standing orders,2261197 , 29/11/2018,96.00,"1,112.51","1,335.01"
600312,Sports Hall,Active Scilly,Democrative and Corporate Governance,45105,Telephone Usage,The Phone Co-Op Ltd,004069722 call internet standing orders,2261197 , 29/11/2018,-11.00,"1,112.51","1,335.01"
600312,Sports Hall,Active Scilly,Democrative and Corporate Governance,45105,Telephone Usage,The Phone Co-Op Ltd,004069722 call internet standing orders,2261197 , 29/11/2018,1.20,"1,112.51","1,335.01"
600312,Sports Hall,Active Scilly,Democrative and Corporate Governance,45105,Telephone Usage,The Phone Co-Op Ltd,004069722 call internet standing orders,2261197 , 29/11/2018,1.20,"1,112.51","1,335.01"
600313,Normandy Swimming Pool,Active Scilly,Democrative and Corporate Governance,22002,Electricity,British Gas Business,Swimming Pool,2217970 , 28/12/2018,944.01,944.01,"1,132.81"
600313,Normandy Swimming Pool,Active Scilly,Democrative and Corporate Governance,45105,Telephone Usage,The Phone Co-Op Ltd,004069722 call internet standing orders,2261197 , 29/11/2018,-0.07,"1,112.51","1,335.01"
600313,Normandy Swimming Pool,Active Scilly,Democrative and Corporate Governance,45105,Telephone Usage,The Phone Co-Op Ltd,004069722 call internet standing orders,2261197 , 29/11/2018,1.20,"1,112.51","1,335.01"
600313,Normandy Swimming Pool,Active Scilly,Democrative and Corporate Governance,45105,Telephone Usage,The Phone Co-Op Ltd,004069722 call internet standing orders,2261197 , 29/11/2018,1.20,"1,112.51","1,335.01"
600313,Normandy Swimming Pool,Active Scilly,Democrative and Corporate Governance,45105,Telephone Usage,The Phone Co-Op Ltd,004069722 call internet standing orders,2261197 , 29/11/2018,4.90,"1,112.51","1,335.01"
600313,Normandy Swimming Pool,Active Scilly,Democrative and Corporate Governance,45105,Telephone Usage,The Phone Co-Op Ltd,004069722 call internet standing orders,2261197 , 29/11/2018,1.20,"1,112.51","1,335.01"
600313,Normandy Swimming Pool,Active Scilly,Democrative and Corporate Governance,45105,Telephone Usage,The Phone Co-Op Ltd,004069722 call internet standing orders,2261197 , 29/11/2018,9.79,"1,112.51","1,335.01"
600313,Normandy Swimming Pool,Active Scilly,Democrative and Corporate Governance,45105,Telephone Usage,The Phone Co-Op Ltd,004069722 call internet standing orders,2261197 , 29/11/2018,36.00,"1,112.51","1,335.01"
600313,Normandy Swimming Pool,Active Scilly,Democrative and Corporate Governance,45215,Internet/Broadband charges,The Phone Co-Op Ltd,004069722 call internet standing orders,2261197 , 29/11/2018,88.00,"1,112.51","1,335.01"
600313,Normandy Swimming Pool,Active Scilly,Democrative and Corporate Governance,43532,Professional Fees - Other,REDACTED,Professional Swimming Teacher fees,2368261 , 23/10/2018,691.82,691.82,691.82
600313,Normandy Swimming Pool,Active Scilly,Democrative and Corporate Governance,49002,Miscellaneous Expenditure,Westcountry Leisure Pool & Spa Services Ltd,Pool servicing,2366659 , 15/11/2018,825.00,825.00,990.00
600313,Normandy Swimming Pool,Active Scilly,Democrative and Corporate Governance,22002,Electricity,British Gas,29/9 - 28/10,2415896 , 13/12/2018,621.56,621.56,745.87
600321,Finance,Support Services,Strategic Development and Finance,22002,Electricity,British Gas Business,67006484-959407225 31 ACCOUNTS,2415789 , 20/12/2018,"1,070.52","1,984.19","2,243.84"
600321,Finance,Support Services,Strategic Development and Finance,22002,Electricity,British Gas Business,67006484-959407225 31 ACCOUNTS,2415789 , 20/12/2018,913.67,"1,984.19","2,243.84"
600321,Finance,Support Services,Strategic Development and Finance,45105,Telephone Usage,The Phone Co-Op Ltd,004069722 call internet standing orders,2261197 , 29/11/2018,25.00,"1,112.51","1,335.01"
600321,Finance,Support Services,Strategic Development and Finance,12506,Bike 2 Work Scheme,Cycle Solutions (Cycle to Work) Ltd,Bicycles and safety equipment,2410485 , 06/12/2018,443.90,443.90,532.68
600321,Finance,Support Services,Strategic Development and Finance,45105,Telephone Usage,The Phone Co-Op Ltd,Phone charges,2420551 , 21/12/2018,"1,262.13","1,262.13","1,514.55"
600321,Finance,Support Services,Strategic Development and Finance,46118,Freight Costs,Isles Of Scilly Steamship Co,Freight: General CIOS - September 2018,2368305 , 01/11/2018,"-6,551.36","6,551.36","7,861.66"
600321,Finance,Support Services,Strategic Development and Finance,46118,Freight Costs,Isles Of Scilly Steamship Co,Freight: General CIOS - September 2018,2368305 , 01/11/2018,"6,551.36","6,551.36","7,861.66"
600321,Finance,Support Services,Strategic Development and Finance,46118,Freight Costs,Isles Of Scilly Steamship Co,Freight: General CIOS - September 2018,2368305 , 01/11/2018,"6,551.36","6,551.36","7,861.66"
600321,Finance,Support Services,Strategic Development and Finance,22002,Electricity,British Gas Business,BRITISH GAS OUTSTANDING INVOICES- various,2411608 , 11/12/2018,"21,751.03","48,369.31","53,992.66"
600321,Finance,Support Services,Strategic Development and Finance,22002,Electricity,British Gas Business,BRITISH GAS OUTSTANDING INVOICES- various,2411608 , 11/12/2018,"25,519.15","48,369.31","53,992.66"
600321,Finance,Support Services,Strategic Development and Finance,22002,Electricity,British Gas Business,BRITISH GAS OUTSTANDING INVOICES- various,2411608 , 11/12/2018,"1,099.13","48,369.31","53,992.66"
600321,Finance,Support Services,Strategic Development and Finance,12506,Bike 2 Work Scheme,Cycle Solutions (Cycle to Work) Ltd,Cycle Solutions: August 2018,2356213 , 09/10/2018,26.99,"1,030.48","1,231.18"
600321,Finance,Support Services,Strategic Development and Finance,12506,Bike 2 Work Scheme,Cycle Solutions (Cycle to Work) Ltd,Cycle Solutions: August 2018,2356213 , 09/10/2018,"1,003.49","1,030.48","1,231.18"
600321,Finance,Support Services,Strategic Development and Finance,12506,Bike 2 Work Scheme,Cycle Solutions (Cycle to Work) Ltd,Cycle Solutions: August 2018,2356213 , 09/10/2018,"-1,030.48","1,030.48","1,231.18"
600321,Finance,Support Services,Strategic Development and Finance,12506,Bike 2 Work Scheme,Cycle Solutions (Cycle to Work) Ltd,Cycle Solutions: August 2018,2356213 , 09/10/2018,"1,030.48","1,030.48","1,231.18"
600321,Finance,Support Services,Strategic Development and Finance,45101,Mobile Phones,Vodafone re. Cable & Wireless UK,89715816 LINE 386,2430380 , 28/12/2018,445.24,445.24,534.28
600321,Finance,Support Services,Strategic Development and Finance,45101,Mobile Phones,Vodafone re. Cable & Wireless UK,89392372 LINE 312,2430379 , 28/12/2018,466.73,466.73,560.07
600321,Finance,Support Services,Strategic Development and Finance,45105,Telephone Usage,The Phone Co-Op Ltd,Mobile/landline charges - Nov 18,2401882 , 29/11/2018,979.06,979.06,"1,174.87"
600321,Finance,Support Services,Strategic Development and Finance,31102,Vehicle Repair and Maintenance,Sibleys Fuel & Marine Services,Sibleys Fuel and Marine Services November,2410130 , 06/12/2018,"3,763.93","5,284.83","5,777.23"
600321,Finance,Support Services,Strategic Development and Finance,31102,Vehicle Repair and Maintenance,Sibleys Fuel & Marine Services,Sibleys Fuel and Marine Services November,2410130 , 06/12/2018,"1,520.90","5,284.83","5,777.23"
600321,Finance,Support Services,Strategic Development and Finance,45101,Mobile Phones,One Off Payments,Line 46,2426190 , 21/12/2018,440.98,440.98,529.17
600321,Finance,Support Services,Strategic Development and Finance,45101,Mobile Phones,One Off Payments,670087575/00001  87528319,2425880 , 21/12/2018,442.39,442.39,530.86
600321,Finance,Support Services,Strategic Development and Finance,45101,Mobile Phones,One Off Payments,Line 165,2426192 , 21/12/2018,449.82,449.82,539.78
600321,Finance,Support Services,Strategic Development and Finance,12506,Bike 2 Work Scheme,Cycle Solutions (Cycle to Work) Ltd,Cycle solutions for September,2363837 , 18/10/2018,915.74,947.24,"1,130.39"
600321,Finance,Support Services,Strategic Development and Finance,12506,Bike 2 Work Scheme,Cycle Solutions (Cycle to Work) Ltd,Cycle solutions for September,2363837 , 18/10/2018,31.50,947.24,"1,130.39"
600321,Finance,Support Services,Strategic Development and Finance,12506,Bike 2 Work Scheme,Cycle Solutions (Cycle to Work) Ltd,Cycle solutions for September,2363837 , 18/10/2018,-947.24,947.24,"1,130.39"
600321,Finance,Support Services,Strategic Development and Finance,12506,Bike 2 Work Scheme,Cycle Solutions (Cycle to Work) Ltd,Cycle solutions for September,2363837 , 18/10/2018,947.24,947.24,"1,130.39"
600321,Finance,Support Services,Strategic Development and Finance,45105,Telephone Usage,The Phone Co-Op Ltd,Mobile/landline charges - Apr 18,2401866 , 29/11/2018,"1,445.99","1,445.99","1,735.19"
600321,Finance,Support Services,Strategic Development and Finance,12506,Bike 2 Work Scheme,Cycle Solutions (Cycle to Work) Ltd,October 2018,2404775 , 04/12/2018,"1,735.49","1,735.49","2,082.59"
600321,Finance,Support Services,Strategic Development and Finance,45101,Mobile Phones,One Off Payments,670087575/0001 87220303,2425876 , 21/12/2018,444.47,444.47,533.36
600321,Finance,Support Services,Strategic Development and Finance,49002,Miscellaneous Expenditure,Cornwall Council,Annual Finance support from CC,2363219 , 08/11/2018,"69,000.00","69,000.00","82,800.00"
600321,Finance,Support Services,Strategic Development and Finance,45105,Telephone Usage,The Phone Co-Op Ltd,Mobile/landline charges - Oct 18,2401880 , 29/11/2018,"1,046.25","1,046.25","1,255.50"
600321,Finance,Support Services,Strategic Development and Finance,45105,Telephone Usage,The Phone Co-Op Ltd,Mobile/landline charges - Sep 18,2401876 , 29/11/2018,"1,051.55","1,051.55","1,261.86"
600321,Finance,Support Services,Strategic Development and Finance,45101,Mobile Phones,One Off Payments,Line 95,2426191 , 21/12/2018,443.50,443.50,532.20
600321,Finance,Support Services,Strategic Development and Finance,45105,Telephone Usage,The Phone Co-Op Ltd,Mobile/landline charges - Aug 18,2401873 , 29/11/2018,"1,049.74","1,049.74","1,259.69"
600321,Finance,Support Services,Strategic Development and Finance,43606,Financial Support,Cornwall Council,Finance Charge Jan - Mar 17,2358946 , 09/10/2018,"34,089.85","35,789.80","42,947.76"
600321,Finance,Support Services,Strategic Development and Finance,43532,Professional Fees - Other,Cornwall Council,Finance Charge Jan - Mar 17,2358946 , 09/10/2018,"1,699.95","35,789.80","42,947.76"
600321,Finance,Support Services,Strategic Development and Finance,49002,Miscellaneous Expenditure,Cornwall Council,Annual Finance support from CC,2362936 , 16/10/2018,"69,000.00","69,000.00","82,800.00"
600321,Finance,Support Services,Strategic Development and Finance,46118,Freight Costs,Isles Of Scilly Steamship Co,Isles of Scilly Travel Freight - General October 2018,2402650 , 06/12/2018,"3,979.09","3,979.09","4,774.91"
600321,Finance,Support Services,Strategic Development and Finance,46118,Freight Costs,Isles Of Scilly Steamship Co,Isles of Scilly Travel Freight-General: November 18,2415845 , 18/12/2018,"4,628.36","4,628.36","5,554.05"
600321,Finance,Support Services,Strategic Development and Finance,45101,Mobile Phones,One Off Payments,Line 259,2426193 , 21/12/2018,442.48,442.48,530.97
600323,Human Resources,Support Services,Strategic Development and Finance,12601,Professional subscriptions,Reed Business Information Ltd,Xpert HR membership,2409990 , 04/12/2018,981.00,981.00,"1,177.20"
600323,Human Resources,Support Services,Strategic Development and Finance,12502,Medical Fees,Care First,Care First Feew,2425492 , 20/12/2018,475.00,475.00,570.00
600323,Human Resources,Support Services,Strategic Development and Finance,12502,Medical Fees,Care First,Care First Feew,2425488 , 20/12/2018,-475.00,475.00,570.00
600323,Human Resources,Support Services,Strategic Development and Finance,12502,Medical Fees,Care First,Care First Feew,2425488 , 20/12/2018,475.00,475.00,570.00
600323,Human Resources,Support Services,Strategic Development and Finance,12502,Medical Fees,Care First,Care First Feew,2425488 , 20/12/2018,-570.00,475.00,570.00
600323,Human Resources,Support Services,Strategic Development and Finance,12502,Medical Fees,Care First,Care First Feew,2425488 , 20/12/2018,570.00,475.00,570.00
600323,Human Resources,Support Services,Strategic Development and Finance,43532,Professional Fees - Other,Care First,Care First Fees,2425488 , 20/12/2018,475.00,475.00,570.00
600323,Human Resources,Support Services,Strategic Development and Finance,43505,Consultants - Other,South West Councils,SW councils - travel and accommodation - 0000065418,2359004 , 23/10/2018,218.90,713.90,856.68
600323,Human Resources,Support Services,Strategic Development and Finance,43532,Professional Fees - Other,South West Councils,REDACTED,2359004 , 23/10/2018,495.00,713.90,856.68
600323,Human Resources,Support Services,Strategic Development and Finance,43532,Professional Fees - Other,South West Councils,REDACTED,2359004 , 23/10/2018,-713.90,713.90,856.68
600323,Human Resources,Support Services,Strategic Development and Finance,43532,Professional Fees - Other,South West Councils,REDACTED,2359004 , 23/10/2018,713.90,713.90,856.68
600323,Human Resources,Support Services,Strategic Development and Finance,12502,Medical Fees,Care First,Care First Feew,2425491 , 20/12/2018,-475.00,475.00,570.00
600323,Human Resources,Support Services,Strategic Development and Finance,12502,Medical Fees,Care First,Care First Feew,2425491 , 20/12/2018,475.00,475.00,570.00
600323,Human Resources,Support Services,Strategic Development and Finance,43532,Professional Fees - Other,Care First,Care First Fees,2425491 , 20/12/2018,475.00,475.00,570.00
600323,Human Resources,Support Services,Strategic Development and Finance,43532,Professional Fees - Other,Care First,Care First Fees,2425491 , 20/12/2018,-570.00,475.00,570.00
600323,Human Resources,Support Services,Strategic Development and Finance,43532,Professional Fees - Other,Care First,Care First Fees,2425491 , 20/12/2018,570.00,475.00,570.00
600324,Information Technology,Support Services,Strategic Development and Finance,43001,Photocopying & Printing,Canon (Uk) Limited,770654009 09.04.18,2426090 , 21/12/2018,475.12,475.12,570.14
600324,Information Technology,Support Services,Strategic Development and Finance,43001,Photocopying & Printing,Canon (Uk) Limited,770654015 09.04.18,2426114 , 21/12/2018,"1,217.74","1,217.74","1,461.29"
600324,Information Technology,Support Services,Strategic Development and Finance,49002,Miscellaneous Expenditure,Cornwall Council,2017-18 Service Charge,2374916 , 06/12/2018,"139,344.00","516,000.00","619,200.00"
600324,Information Technology,Support Services,Strategic Development and Finance,43001,Photocopying & Printing,Canon (Uk) Limited,770654012 09.04.12,2426098 , 21/12/2018,825.84,825.84,991.00
600324,Information Technology,Support Services,Strategic Development and Finance,43001,Photocopying & Printing,Canon (Uk) Limited,770654014 09.04.18,2426109 , 21/12/2018,"4,226.04","4,226.04","5,071.25"
600324,Information Technology,Support Services,Strategic Development and Finance,43001,Photocopying & Printing,Canon (Uk) Limited,770654010 09.04.18,2426042 , 21/12/2018,"2,243.98","2,243.98","2,692.78"
600324,Information Technology,Support Services,Strategic Development and Finance,43001,Photocopying & Printing,Canon (Uk) Limited,770654011 09.04.18,2426094 , 21/12/2018,"1,217.74","1,217.74","1,461.29"
600324,Information Technology,Support Services,Strategic Development and Finance,43001,Photocopying & Printing,Canon (Uk) Limited,770673875 LINE 293,2430365 , 28/12/2018,596.61,596.61,715.93
600324,Information Technology,Support Services,Strategic Development and Finance,43001,Photocopying & Printing,Canon (Uk) Limited,402007413 LINE 150,2430371 , 28/12/2018,654.06,654.06,784.87
600324,Information Technology,Support Services,Strategic Development and Finance,43001,Photocopying & Printing,Canon (Uk) Limited,7706554007 09.04.18,2426073 , 21/12/2018,"2,177.09","2,177.09","2,612.50"
600324,Information Technology,Support Services,Strategic Development and Finance,43001,Photocopying & Printing,Canon (Uk) Limited,770654016 09.04.18,2426118 , 21/12/2018,"1,321.38","1,321.38","1,585.65"
600324,Information Technology,Support Services,Strategic Development and Finance,43001,Photocopying & Printing,Canon (Uk) Limited,,2426121 , 21/12/2018,475.12,475.12,570.14
600324,Information Technology,Support Services,Strategic Development and Finance,43001,Photocopying & Printing,Canon (Uk) Limited,401986718 26.04.18,2426153 , 21/12/2018,843.14,843.14,"1,011.77"
600400,Council Tax Account,Council Tax Account,Strategic Development and Finance,65003,Police Authority Precept,Devon & Cornwall Police Authority,POLICE PRECEPT OCT18,2365558 , 17/10/2018,"20,794.00","20,794.00","20,794.00"
600400,Council Tax Account,Council Tax Account,Strategic Development and Finance,65003,Police Authority Precept,Devon & Cornwall Police Authority,NOVEMBER ISLES OF SCILLY PRECEPT,2413312 , 13/12/2018,"20,794.00","20,794.00","20,794.00"
600400,Council Tax Account,Council Tax Account,Strategic Development and Finance,65003,Police Authority Precept,Devon & Cornwall Police Authority,NOVEMBER ISLES OF SCILLY PRECEPT,2413312 , 13/12/2018,"-20,794.00","20,794.00","20,794.00"
600400,Council Tax Account,Council Tax Account,Strategic Development and Finance,65003,Police Authority Precept,Devon & Cornwall Police Authority,NOVEMBER ISLES OF SCILLY PRECEPT,2413312 , 13/12/2018,"20,794.00","20,794.00","20,794.00"
600400,Council Tax Account,Council Tax Account,Strategic Development and Finance,65003,Police Authority Precept,Devon & Cornwall Police Authority,NOVEMBER ISLES OF SCILLY PRECEPT,2388948 , 13/11/2018,"20,794.00","20,794.00","20,794.00"
690001,Services to Our Community Directorate,Services to Our Community Directorate,Community,89201,Planning & Building Reg Fees,Stride Treglown,Stride Treglown-CG Inv 19961,2395115 , 22/11/2018,"1,306.25","1,306.25","1,567.50"
690001,Services to Our Community Directorate,Services to Our Community Directorate,Community,89103,New Construction Works,Blackwell Building Services (IoS) Ltd,Carn Gwaval Capital Works,2410687 , 06/12/2018,"60,023.84","60,023.84","72,028.60"
690001,Services to Our Community Directorate,Services to Our Community Directorate,Community,89201,Planning & Building Reg Fees,Currie & Brown UK Ltd,Pro fees Currie & Brown CG Alt,2407777 , 27/12/2018,"2,000.00","2,000.00","2,400.00"
690001,Services to Our Community Directorate,Services to Our Community Directorate,Community,89103,New Construction Works,Blackwell Building Services (IoS) Ltd,Carn Gwaval Capital Works,2382237 , 06/11/2018,"39,269.65","39,269.65","47,123.58"
690001,Services to Our Community Directorate,Services to Our Community Directorate,Community,89103,New Construction Works,Blackwell Building Services (IoS) Ltd,Carn Gwaval Capital Works,2357548 , 09/10/2018,"84,487.97","84,487.97","101,385.56"
690001,Services to Our Community Directorate,Services to Our Community Directorate,Community,89004,Acquisition Costs - Vehicles & Plant,Angloco Ltd,Angloco Ltd- Supply of fire appliance for Cat 3 Airport- St Mary's airport Chassis Stage,2360434 , 09/10/2018,"73,735.00","73,735.00","88,482.00"
690001,Services to Our Community Directorate,Services to Our Community Directorate,Community,89201,Planning & Building Reg Fees,Stride Treglown,Stride Treglown CG Inv 19584,2363118 , 25/10/2018,"1,586.25","1,586.25","1,903.50"
690002,Infrastructure & Planning Directorate,Infrastructure and Planning Directorate,Infrastructure and Planning,89004,Acquisition Costs - Vehicles & Plant,Allins Ltd,Purchase of 8 x waste compactor skips from Allins,2371226 , 23/10/2018,"4,604.00","4,604.00","5,524.80"
690002,Infrastructure & Planning Directorate,Infrastructure and Planning Directorate,Infrastructure and Planning,89004,Acquisition Costs - Vehicles & Plant,Allins Ltd,Purchase of 8 x waste compactor skips from Allins,2371227 , 23/10/2018,"4,604.00","4,604.00","5,524.80"
690002,Infrastructure & Planning Directorate,Infrastructure and Planning Directorate,Infrastructure and Planning,89004,Acquisition Costs - Vehicles & Plant,Allins Ltd,Purchase of 8 x waste compactor skips from Allins,2371230 , 23/10/2018,"4,604.00","4,604.00","5,524.80"
690002,Infrastructure & Planning Directorate,Infrastructure and Planning Directorate,Infrastructure and Planning,89004,Acquisition Costs - Vehicles & Plant,Ribcraft UK Ltd,To build the new IFCA RIB,2399574 , 22/11/2018,"31,848.47","31,848.47","38,218.16"
690002,Infrastructure & Planning Directorate,Infrastructure and Planning Directorate,Infrastructure and Planning,89004,Acquisition Costs - Vehicles & Plant,Allins Ltd,Purchase of 8 x waste compactor skips from Allins,2371232 , 23/10/2018,"4,604.00","4,604.00","5,524.80"
690002,Infrastructure & Planning Directorate,Infrastructure and Planning Directorate,Infrastructure and Planning,89004,Acquisition Costs - Vehicles & Plant,The Quad Centre,Polaris Ranger EV,2395107 , 20/11/2018,"13,380.08","13,380.08","16,056.09"
690004,Democratic & Corporate Directorate,Democratic and Corporate Directorate,Corporate,89408,Other Costs,Cornwall Council,"2017-18 Hardware, Software",2374916 , 06/12/2018,"376,656.00","516,000.00","619,200.00"
